Cogmind - Beta 16.1 @@@ ROGUE MODE // 2026.01.04 @ 03:27:26 Player: Selene Result: Destroyed by Executioner with Helical Railgun Performance ------------- Evolutions (8) 4000 Regions Visited (25) 5000 Robots Destroyed (246) 1230 Value Destroyed (12062) 12062 Prototype IDs (135) 2700 Alien Tech Used (3) 600 Bonus (10687) 10687 TOTAL SCORE: 36279 Bonus ------- High Alert Combat Kills 5670 Follower Combat Kills 1723 Hunted by Unchained 500 Registered with UFD 300 Met Optimus in HQ 500 Met Warlord at Base 500 MAIN.C Attacked Warlord 500 Warlord Defense Kills 1148 Met Optimus at Protoforge 1000 Friendly Fire -1154 Cogmind --------- Core Integrity 0/1450 Matter 290/300 Energy 240/240 System Corruption 1% Temperature Cool (0) Movement Flying (36) Location -2/Protoforge Parts ------- > --- POWER (2) -------- Micro Antimatter Reactor Light Quantum Reactor > --- PROPULSION (8) --- Impulse Thruster Array Impulse Thruster Array Impulse Thruster Array Impulse Thruster Array > --- UTILITY (11) ----- Experimental Optical Array Experimental Targeting Computer Experimental Targeting Computer Experimental Targeting Computer Advanced Target Analyzer Experimental Core Analyzer Experimental Core Analyzer Improved Armor Integrity Analyzer Advanced Kinecellerator Makeshift Heavy Armor Plating > --- WEAPON (2) ------- Helical Railgun Helical Railgun > --- INVENTORY (5) ---- Light Quantum Reactor Impulse Thruster Array Mini Smartbomb Launcher Plasma Lance Peak State ------------ > --- POWER ------------ Light Antimatter Reactor Light Quantum Reactor > --- PROPULSION ------- Impulse Thruster Array Impulse Thruster Array Impulse Thruster Array Impulse Thruster Array > --- UTILITY ---------- Large Storage Unit Experimental Targeting Computer Experimental Targeting Computer Experimental Targeting Computer Experimental Core Analyzer Experimental Core Analyzer Improved Armor Integrity Analyzer Advanced Kinecellerator Experimental Reaction Control System Experimental Weapon Shielding Centrium Light Armor Plating > --- WEAPON ----------- Helical Railgun Helical Railgun > --- INVENTORY -------- Micro Antimatter Reactor Impulse Thruster Array Helical Railgun Mini Smartbomb Launcher UFD Drillbomb [Rating: 194] Favorites ----------- Power Light Nuclear Core Engine Backup Power III Power Core Light Nuclear Core Reactor Micro Antimatter Reactor Propulsion Impulse Thruster Array Treads Light Treads Leg Carbon-fiber Leg Wheel Armored Wheel Flight Unit Impulse Thruster Array Utility Large Storage Unit Device Advanced Sensor Array Storage Large Storage Unit Processor Advanced Signal Interpreter Hackware Advanced System Shield Protection Improved Light Armor Plating Artifact Phase Redirector Weapon Light Assault Rifle Energy Gun Advanced Beam Rifle Energy Cannon Phase Cannon Ballistic Gun Light Assault Rifle Ballistic Cannon Compact Linear Accelerator Launcher Mini Smartbomb Launcher Special Weapon RU-N14's Throwing Claymores v3 Impact Weapon Great Maul Slashing Weapon Power Sword Piercing Weapon Plasma Lance Special Melee Weapon Improved Datajack Build | -11 -10 -10 -10 -9 -8 -8 -8 -8 -6 -6 -6 -6 -5 -5 -5 -5 -4 -4 -4 -4 -3 -3 -2 -2 -2 ------- Run | Yrd Mat Min Exi Min Mat Sto Rec Scr Fac Was Fac Ext Fac Upp Upp War Pro Fac Was Fac Res Qua Res Tes Frg Slots Evolved 16 | . . . . . 4 . . . 4 . . . 2 . . . . 2 . . 2 . 2 . . Power 1 | . . . . . . . . . . . . . 1 . . . . . . . . . . . . Propulsion 6 | . . . . . 2 . . . 1 . . . 1 . . . . 1 . . . . 1 . . Utility 9 | . . . . . 2 . . . 3 . . . . . . . . 1 . . 2 . 1 . . Weapon . | . . . . . . . . . . . . . . . . . . . . . . . . . . Parts Attached 350 | 7 6 4 4 . 29 21 2 9 31 1 10 11 13 3 2 30 3 9 3 4 7 7 8 13 113 Power 51 | 1 2 . . . 4 2 1 . 3 1 . 1 1 1 1 4 . 2 . . 1 . 5 . 21 Engine 9 | 1 2 . . . . 1 . . 1 . . . 1 1 . 1 . . . . . . 1 . . Core 15 | . . . . . 4 1 1 . 2 . . 1 . . 1 2 . 1 . . . . . . 2 Reactor 27 | . . . . . . . . . . 1 . . . . . 1 . 1 . . 1 . 4 . 19 Propulsion 64 | 2 2 1 . . 9 6 . 3 8 . 1 . 2 . . 4 1 . . 2 2 3 . 2 16 Treads 9 | 2 2 1 . . 4 . . . . . . . . . . . . . . . . . . . . Leg 12 | . . . . . 4 6 . 2 . . . . . . . . . . . . . . . . . Wheel 1 | . . . . . 1 . . . . . . . . . . . . . . . . . . . . Hover . | . . . . . . . . . . . . . . . . . . . . . . . . . . Flight 42 | . . . . . . . . 1 8 . 1 . 2 . . 4 1 . . 2 2 3 . 2 16 Utility 158 | 2 1 1 2 . 10 5 1 5 14 . 5 5 6 2 1 16 2 5 2 2 3 3 2 8 55 Device 53 | 1 . 1 . . 3 3 . 1 6 . 1 2 3 . 1 7 2 3 . . 2 . 1 5 11 Storage 10 | 1 1 . 1 . . . . . 2 . . 1 1 . . 1 . . . . . . . 2 . Processor 40 | . . . . . 4 1 . . 2 . 2 . 1 2 . 3 . . . . . . 1 . 24 Hackware 14 | . . . . . 1 . . 1 2 . 1 1 1 . . 1 . 2 . 2 . 1 . 1 . Protection 40 | . . . 1 . 2 1 1 3 2 . 1 1 . . . 4 . . 2 . 1 1 . . 20 Artifact 1 | . . . . . . . . . . . . . . . . . . . . . . 1 . . . Weapon 77 | 2 1 2 2 . 6 8 . 1 6 . 4 5 4 . . 6 . 2 1 . 1 1 1 3 21 Energy Gun 12 | 1 . . . . 4 6 . . . . . . . . . . . . . . . . . 1 . Energy Cannon 3 | . . . . . . . . . . . . . 1 . . . . . . . 1 . 1 . . Ballistic Gun 27 | 1 1 2 2 . 1 1 . 1 . . 1 1 1 . . 1 . . . . . . . . 14 Ballistic Cannon 5 | . . . . . . . . . . . . . . . . . . . . . . . . 1 4 Launcher 7 | . . . . . . 1 . . 2 . 1 2 . . . . . 1 . . . . . . . Special Weapon 3 | . . . . . . . . . . . . . 1 . . 2 . . . . . . . . . Impact Weapon 1 | . . . . . . . . . 1 . . . . . . . . . . . . . . . . Slashing Weapon 9 | . . . . . 1 . . . 2 . 2 1 1 . . 1 . 1 . . . . . . . Piercing Weapon 9 | . . . . . . . . . 1 . . . . . . 2 . . 1 . . 1 . 1 3 Special Melee Weapon 1 | . . . . . . . . . . . . 1 . . . . . . . . . . . . . Unidentified Prototypes 47 | . . . . . . 5 . 1 2 . 2 . 1 . . 14 . 1 . . . 1 . 7 13 Corrupted Parts 1 | . . . . . . . . 1 . . . . . . . . . . . . . . . . . System Corruption 3 | . . . . . . . . 3 . . . . . . . . . . . . . . . . . Parts Lost 81 | . 1 1 . . 12 6 1 . 2 . 1 3 . . 2 4 . 1 . 2 . 5 1 . 39 Power 20 | . . . . . 3 2 1 . 1 . . 1 . . 1 1 . . . 1 . 1 . . 8 Propulsion 23 | . . 1 . . 6 1 . . . . . 1 . . . 2 . . . 1 . 2 . . 9 Utility 29 | . 1 . . . 2 2 . . 1 . . 1 . . 1 1 . . . . . 1 1 . 18 Weapon 9 | . . . . . 1 1 . . . . 1 . . . . . . 1 . . . 1 . . 4 Highest Loss Streak 15 | . 1 1 . . 7 3 1 . 1 . 1 3 . . 2 2 . 1 . 2 . 2 1 . 15 To Critical Strikes 1 | . . . . . . . . . . . . . . . . . . . . . . . . . 1 Average Backups 12 | 2 10 13 15 15 17 18 18 14 9 8 8 10 13 14 13 13 14 13 14 13 13 14 14 14 6 Power . | . . 1 1 1 . 1 . . . . . 1 1 . . . 1 1 2 1 1 1 2 2 . Propulsion 3 | . 3 4 4 4 6 7 8 4 2 3 2 3 2 3 3 2 2 1 1 1 4 4 2 4 1 Utility 4 | . 4 6 7 8 5 5 5 5 4 4 3 3 5 8 7 5 6 7 8 8 6 5 4 2 . Weapon 3 | . 1 2 2 2 4 4 5 3 1 1 1 1 3 2 2 4 4 4 2 2 2 2 3 3 2 Tool/Special . | . . . . . . . . . . . . . . . . . . . . . . . . . . Unused Backups 115 | 1 4 . . . 10 11 3 22 15 1 3 1 8 2 . 3 1 3 . 2 . 2 1 2 20 Power 13 | 1 . . . . . 1 . 1 2 1 . . 1 . . 1 1 . . . . . 1 . 3 Propulsion 18 | . 1 . . . 3 3 . 4 2 . . . . . . . . . . . . . . 2 3 Utility 49 | . 2 . . . 4 1 3 9 9 . 3 . 5 1 . 1 . 1 . 1 . 2 . . 7 Weapon 31 | . 1 . . . 3 6 . 5 2 . . 1 2 1 . 1 . 2 . . . . . . 7 Tool/Special 4 | . . . . . . . . 3 . . . . . . . . . . . 1 . . . . . Average Slot Usage (%) 89 | . 99 100 73 100 96 98 99 94 92 93 95 99 87 85 82 89 82 88 85 88 85 84 84 83 76 Engine 3 | . 14 14 14 14 . 2 . . . . . . . 3 5 9 5 4 4 3 4 3 2 . . Core 3 | . . . . . 7 6 9 8 6 6 6 5 5 5 2 . . . . . . . . . . Reactor 2 | . . . . . . . . . . . . . . . . . 5 5 5 5 4 4 5 8 6 Treads 4 | . 27 28 28 28 11 . . . . . . . . . . . . . . . . . . . . Leg 10 | . . . . . 20 36 36 34 . . . . . . . . . . . . . . . . . Flight 14 | . . . . . . . . . 32 33 33 32 32 29 29 28 23 26 26 26 19 19 26 23 17 Device 9 | . 14 14 14 . 9 8 9 9 12 13 6 8 12 7 7 8 10 10 10 5 9 9 10 14 5 Storage 6 | . 14 14 14 14 9 9 9 8 6 6 6 6 5 5 5 5 5 5 5 5 4 4 4 4 2 Processor 12 | . . . . . 8 8 9 9 11 13 19 13 7 20 17 19 17 15 15 15 14 14 14 13 24 Hackware 3 | . . . . . 1 . . 3 6 6 2 5 7 . . . . 4 5 9 9 9 8 9 2 Protection 5 | . . . . 14 5 9 9 2 7 6 9 10 5 5 5 4 5 5 5 4 8 9 6 3 8 Energy Gun 2 | . 5 . . . 10 11 9 3 . . . . . . . . . . . . . . . . . Ballistic Gun 5 | . 22 28 1 28 6 . . 10 . . 1 . . . . . . . . . . . . . 4 Slashing Weapon 3 | . . . . . 1 5 7 3 4 6 6 11 5 4 4 3 . 4 5 4 3 3 . . . Piercing Weapon 1 | . . . . . . . . . . . . . . . . 2 5 4 2 5 3 3 3 5 1 Peak Build Rating 194 | 8 9 11 11 10 35 38 37 41 61 61 71 71 77 73 75 116 119 131 125 128 139 148 160 179 194 Average Rating 78 | 6 8 10 9 10 26 35 36 36 53 58 63 67 70 71 68 89 114 125 120 123 133 139 155 160 165 On Entrance 70 | . 8 8 11 10 10 35 37 33 40 59 59 66 58 70 72 75 113 114 118 125 124 134 140 153 163 Avg Prop Armor Cover (%) 11 | . . . . . 23 . . . . . . . . . 1 . . . . . . . . . 7 Naked Turns . | . . . . . . . . . . . . . . . . . . . . . . . . . . Heaviest Build 72 | 12 28 28 50 50 54 57 53 56 59 27 30 45 42 35 35 42 43 48 47 51 49 57 65 64 72 Greatest Support 80 | 40 40 40 40 40 80 57 54 60 60 29 32 41 44 35 35 43 44 56 56 55 54 57 70 73 73 Greatest Overweight (x) 19 | . 1 . 1 1 4 1 . . . . . 1 1 . . . . . . . . 1 19 . 1 Average Overweight (x) . | . . . . 1 . . . . . . . . . . . . . . . . . . . . . Largest Inventory Capacity 20 | 8 15 15 20 20 20 20 20 20 20 10 10 15 15 15 15 15 15 15 15 15 15 15 15 15 15 Average Capacity 15 | 7 12 15 18 20 20 20 20 19 10 10 10 12 15 15 15 15 15 15 15 15 15 15 15 15 11 Most Carried 20 | 5 15 15 18 17 20 20 20 20 19 10 10 15 15 15 15 15 15 15 15 15 15 15 15 15 15 Average Carried 14 | 3 11 14 16 16 18 19 19 15 10 9 9 11 14 14 14 14 14 14 14 14 14 14 14 14 10 Final Capacity 20 | 8 15 15 20 20 20 20 20 20 10 10 10 15 15 15 15 15 15 15 15 15 15 15 15 15 5 Final Carried 20 | 5 15 15 16 17 20 20 20 20 10 10 10 13 15 15 14 15 15 15 15 15 15 15 15 14 5 Class Distribution -------------------- 20% | Scavenger-Mutant 19% | Commander-Mutant 16% | Mutant 9% | Hacker-Ninja 5% | Sprinter 4% | Scavenger-Ninja 4% | Scavenger-Scout 4% | Ninja 4% | Scout Dominant Class ---------------- Mutant | -10/Materials Scavenger-Mutant | -10/Mines Mutant | -10/Exiles Mutant | -9/Mines Scavenger-Mutant | -8/Materials Mutant | -8/Storage Scavenger-Mutant | -8/Recycling Commander-Mutant | -8/Scraptown Sprinter | -6/Factory Sprinter | -6/Waste Scout | -6/Factory Sprinter | -6/Extension Hacker-Sprinter | -5/Factory Scavenger-Scout | -5/Upper Caves Scout | -5/Upper Caves Scavenger-Scout | -5/Warlord Scavenger-Ninja | -4/Proximity Caves Scavenger-Ninja | -4/Factory Ninja | -4/Waste Hacker-Scout | -4/Factory Hacker-Ninja | -3/Research Hacker-Ninja | -3/Quarantine Hacker-Ninja | -2/Research Hacker-Ninja | -2/Testing Scavenger-Mutant | -2/Protoforge Resources | -11 -10 -10 -10 -9 -8 -8 -8 -8 -6 -6 -6 -6 -5 -5 -5 -5 -4 -4 -4 -4 -3 -3 -2 -2 -2 ----------- Run | Yrd Mat Min Exi Min Mat Sto Rec Scr Fac Was Fac Ext Fac Upp Upp War Pro Fac Was Fac Res Qua Res Tes Frg Matter Collected 10742 | 288 285 145 52 40 419 244 60 75 483 168 151 425 160 190 45 682 40 300 85 110 199 258 107 138 5593 Remotely . | . . . . . . . . . . . . . . . . . . . . . . . . . . Salvage Created 13328 | 162 301 202 . . 1197 1045 41 . 468 41 415 909 241 199 65 401 . 127 . 226 370 302 41 216 6359 Parts 600 | 18 20 12 . . 61 45 1 . 20 3 8 24 11 1 4 12 . 4 . 6 13 30 1 9 297 Haulers Intercepted 13 | . 1 . . . 4 . . . 1 . 4 2 . . . . . 1 . . . . . . . Recyclers Shooed 5 | . . 1 . . 1 1 . . . . . 2 . . . . . . . . . . . . . Parts Field Recycled . | . . . . . . . . . . . . . . . . . . . . . . . . . . Retrieved Matter . | . . . . . . . . . . . . . . . . . . . . . . . . . . Parts Self-Destructed 16 | . . . . . . . . . . . . . . . 9 . 7 . . . . . . . . Prevented . | . . . . . . . . . . . . . . . . . . . . . . . . . . Parts Restored . | . . . . . . . . . . . . . . . . . . . . . . . . . . Kills | -11 -10 -10 -10 -9 -8 -8 -8 -8 -6 -6 -6 -6 -5 -5 -5 -5 -4 -4 -4 -4 -3 -3 -2 -2 -2 ------- Run | Yrd Mat Min Exi Min Mat Sto Rec Scr Fac Was Fac Ext Fac Upp Upp War Pro Fac Was Fac Res Qua Res Tes Frg Combat Hostiles Destroyed 173 | . 7 8 . . 20 18 . . 4 1 . 9 . . . 8 . . . 2 1 7 . . 88 Melee 15 | . . . . . . 1 . . 2 1 . 1 . . . 1 . . . 2 1 4 . . 2 Guns 124 | . 7 8 . . 20 16 . . . . . . . . . 1 . . . . . . . . 72 Cannons 5 | . . . . . . . . . . . . . . . . . . . . . . . . . 5 AOE 28 | . . . . . . . . . 2 . . 8 . . . 6 . . . . . 3 . . 9 Classes Destroyed 23 | 2 4 1 . . 3 3 . . 1 1 . 2 . . 1 1 . . . . . . . . 4 Worker 4 | . . . . . 1 . . . . . . 1 2 . . . . . . . . . . . . Builder 2 | . . . . . . . . . . . . 2 . . . . . . . . . . . . . Tunneler 5 | 5 . . . . . . . . . . . . . . . . . . . . . . . . . Hauler 13 | . 1 . . . 4 . . . 1 . 4 2 . . . . . 1 . . . . . . . Recycler 14 | 1 . . . . 2 2 . . 2 . . 3 1 . . . . . . . 2 . . 1 . Minesweeper 2 | . . . . . . . . . . . . . . . 2 . . . . . . . . . . Mechanic 8 | . . . . . . 1 . . . . . . 1 . . . . . . . . . . 1 5 Operator 8 | . . . . . 1 . . . . . . . . . . . . . . 1 . 2 . 1 3 Drone 4 | . . . . . . . . . . . . . . . . . . . . . . . . . 4 Watcher 13 | . 1 . . . 1 . . . 2 . 1 1 . . . . . 1 . 3 2 . 1 . . Swarmer 36 | . 2 6 . . 6 3 . . 3 . . 1 . . . . . . . . 1 4 . . 10 Saboteur 2 | . . . . . . . . . . . . 2 . . . . . . . . . . . . . Grunt 38 | . 5 . . . 8 8 . . . . . 1 . . . 2 . . . . . . . . 14 Brawler 10 | . . . . . . 2 . . . . . 1 . . . 1 . . . . . . . . 6 Duelist 10 | . . . . . . 1 . . . . . 3 . . . 1 . . . . . . . . 5 Protector 9 | . . . . . . . . . . 1 . . . . . . . . . . . . . . 8 Sentry 12 | . . 2 . . 5 4 . . . . . 1 . . . . . . . . . . . . . Specialist 1 | . . . . . . . . . . . . . . . . . . . . . . . . . 1 Hunter 8 | . . . . . 1 . . . . . . . . . . . . . . . . . . . 7 Programmer 20 | . . . . . . . . . 1 . . . . . . 3 . . . 2 . 3 . . 11 Hotshot 1 | . . . . . . . . . . . . . . . . . . . . . . . . . 1 Striker 16 | . . . . . . . . . . . . . . . . . . . . . . . . . 16 Executioner 6 | . . . . . . . . . . . . . . . . 1 . . . . . . . . 5 Scrapoid 1 | . . . . . . . . . . . . . . . . . . . . . . . . . 1 Thug 1 | . . . . . . . . . . . . . . . . 1 . . . . . . . . . Butcher 1 | . . . . . . . . . . . . 1 . . . . . . . . . . . . . Guerrilla 1 | . . . . . . . . . . . . 1 . . . . . . . . . . . . . Best Kill Streak 10 | 2 3 3 . . 5 10 . . 3 1 1 7 2 . 1 6 . 1 . 3 4 3 1 1 6 Combat Bots Only 10 | . 3 3 . . 5 10 . . 3 1 . 7 . . . 6 . . . 2 1 3 . . 6 Max Kills in Single Turn 5 | 1 1 1 . . 2 1 . . 2 1 1 5 1 . 1 2 . 1 . 1 1 1 1 1 2 Gunslinging 1 | . . . . . 1 . . . . . . . . . . . . . . . . . . . 1 Exploded 3 | . . . . . . . . . 2 . . 3 . . . 2 . . . . . 1 . . 1 Melee 1 | . . . . . . 1 . . 1 1 . 1 . . . 1 . . . 1 1 1 . . 1 Uniques/NPCs Destroyed . | . . . . . . . . . . . . . . . . . . . . . . . . . . Combat | -11 -10 -10 -10 -9 -8 -8 -8 -8 -6 -6 -6 -6 -5 -5 -5 -5 -4 -4 -4 -4 -3 -3 -2 -2 -2 -------- Run | Yrd Mat Min Exi Min Mat Sto Rec Scr Fac Was Fac Ext Fac Upp Upp War Pro Fac Was Fac Res Qua Res Tes Frg Hostile Shots Fired 1424 | . 61 46 . . 168 97 . . 128 . 13 108 18 . 7 37 1 37 . 23 12 84 64 2 518 Missed 658 | . 21 11 . . 37 25 . . 72 . 8 66 10 . 4 18 . 18 . 14 7 43 35 2 267 Hits 766 | . 40 35 . . 131 72 . . 56 . 5 42 8 . 3 19 1 19 . 9 5 41 29 . 251 Melee 5 | . . . . . . 4 . . . . . . . . . . . . . . . . . . 1 Projectile 761 | . 40 35 . . 131 68 . . 56 . 5 42 8 . 3 19 1 19 . 9 5 41 29 . 250 AOE 1 | . . . . . . 1 . . . . . . . . . . . . . . . . . . . Critical Strikes 35 | . 1 2 . . 7 1 . . . . . 1 1 . . 3 . 2 . . . 4 1 . 12 Actively Blocked 6 | . . . . . 2 . . . . . . . . . . . . . . . . 1 . . 3 Damage Taken 16034 | . 410 418 . . 1832 1192 18 . 692 . 91 601 131 . 75 439 15 432 . 345 127 1202 596 . 7418 Core 2619 | . 88 90 . . 256 242 . . 193 . 12 126 25 . . 71 15 16 . 39 . 47 69 . 1330 Absorbed by Shields 182 | . . . . . . . . . . . . 56 . . . 42 . . . . . . . . 84 Redirected to Shielding 758 | . . . . . 50 . . . . . . 110 . . . . . . . . . 90 30 . 478 Ignored by Resistances 12 | . . . . . . . . . . . . . . . . . . . . . . . . . 12 Regen/Repaired (Parts) 1401 | . . . . . . . . . 165 . 85 . . . . 81 . 576 92 74 . 42 172 80 34 Core Remaining (%) 68 | 100 . . . 28 . . . 9 . . . 61 . . . . 88 . . 95 . 96 . . . Volleys Fired 703 | 18 40 25 . . 104 42 . . 2 . . 12 1 7 2 25 3 13 . 6 17 8 9 . 369 Largest 2 | 2 2 2 . . 2 2 . . 1 . . 1 1 1 1 1 1 1 . 1 1 1 1 . 2 Hottest 122 | 70 70 40 . . 121 122 . . 36 . . 43 23 85 85 43 85 85 . 85 90 90 120 . 120 Shots Fired 1216 | 36 81 50 . . 206 80 2 . 2 . 1 12 1 7 2 25 3 13 . 6 17 8 9 . 655 Gun 1045 | 36 81 50 . . 206 80 2 . 1 . 1 . 1 . . 13 . . . . . . . . 574 Cannon 112 | . . . . . . . . . . . . . . 7 2 . 3 13 . 6 17 2 9 . 53 Launcher 59 | . . . . . . . . . 1 . . 12 . . . 12 . . . . . 6 . . 28 Special . | . . . . . . . . . . . . . . . . . . . . . . . . . . Kinetic 881 | 18 58 50 . . 121 . . . 1 . 1 . 1 . . 13 . . . . . . . . 618 Thermal 276 | 18 23 . . . 85 80 2 . . . . . . 7 2 . 3 13 . 6 17 2 9 . 9 Explosive 59 | . . . . . . . . . 1 . . 12 . . . 12 . . . . . 6 . . 28 Electromagnetic . | . . . . . . . . . . . . . . . . . . . . . . . . . . Robot Hit Streak 32 | 9 6 18 . . 23 11 12 . 13 . . 4 . . . 8 . . . . . . . . 32 Robot Miss Streak 8 | 2 4 3 . . 4 2 . . . . 1 1 1 . . 3 . . . . . . . . 8 Penetration Max 2 | . . . . . . . . . . . . . . . . . . . . . . . . . 2 Secondary Targets 27 | . 1 2 . . 5 3 . . . . . . . . . . . . . . . . . . 16 Max Gunslinging Chain 1 | . 1 1 . . 1 1 . . . . . . . . . . . . . . . . . . 1 Shots Hit Robots 956 | 22 46 37 . . 144 68 5 . 12 4 19 51 4 4 5 13 . 5 . 12 10 13 3 4 475 Core Hits 500 | 9 22 11 . . 66 32 1 . 5 1 4 40 3 3 2 22 . 2 . 4 4 13 1 3 252 Critical Kills 23 | . . 1 . . . . . . . . . . . . . . . . . . . . . . 22 Critical Parts Destroyed 31 | . . . . . 1 . . . 1 . . . . . . 1 . . . . . . . . 28 Critical Strikes 92 | 2 2 1 . . 4 7 1 . 2 . 4 4 . . . 2 . 2 . 1 3 . . . 57 Burn 12 | 2 2 . . . 3 5 . . . . . . . . . . . . . . . . . . . Destroy 55 | . . 1 . . 1 . . . . . . . . . . 1 . . . . . . . . 52 Blast 4 | . . . . . . . . . . . . . . . . . . . . . . . . . 4 Smash 1 | . . . . . . . . . 1 . . . . . . . . . . . . . . . . Sever 16 | . . . . . . 2 1 . 1 . 4 4 . . . . . 2 . . 2 . . . . Impale 2 | . . . . . . . . . . . . . . . . 1 . . . . . . . . 1 Sunder 2 | . . . . . . . . . . . . . . . . . . . . 1 1 . . . . Melee Attacks 604 | . . . . . 2 32 14 . 62 5 42 51 35 6 7 5 2 83 . 57 31 53 20 26 71 Impact 7 | . . . . . . . . . 7 . . . . . . . . . . . . . . . . Slashing 331 | . . . . . 2 32 14 . 50 5 42 30 35 6 7 1 . 17 . 36 24 30 . . . Piercing 183 | . . . . . . . . . 5 . . . . . . 3 2 66 . . . 2 20 26 59 Entropic 62 | . . . . . . . . . . . . . . . . 1 . . . 21 7 21 . . 12 Sneak Attacks 59 | . . . . . . 4 . . 5 1 4 27 3 . 2 . . 2 . . 3 1 . 3 4 Combat Hostiles 3 | . . . . . . . . . 1 . 1 1 . . . . . . . . . . . . . Follow-up Attacks 6 | . . . . . . . . . . . . 2 . . . . . 1 . . 1 2 . . . Damage Inflicted 37269 | 234 470 313 . . 1643 1453 237 . 995 316 996 3791 332 299 296 1981 . 386 . 1017 850 1292 277 463 19628 Guns 19467 | 234 467 310 . . 1633 1021 20 . . . . . . . . 249 . . . . . . . . 15533 Cannons 1146 | . . . . . . . . . . . . . . . . . . . . . . . . . 1146 Explosions 7124 | . . . . . . . . . 200 . . 2508 . . . 1600 . . . . . 358 . . 2458 Melee 9503 | . . . . . . 419 217 . 795 316 996 1283 332 299 296 132 . 386 . 1017 850 934 277 463 491 Ramming 29 | . 3 3 . . 10 13 . . . . . . . . . . . . . . . . . . . Kinetic 18292 | 60 270 310 . . 724 . . . . . . . . . . 249 . . . . . . . . 16679 Thermal 2408 | 174 197 . . . 909 1021 20 . . . . 87 . . . . . . . . . . . . . Explosive 7037 | . . . . . . . . . 200 . . 2421 . . . 1600 . . . . . 358 . . 2458 Electromagnetic . | . . . . . . . . . . . . . . . . . . . . . . . . . . Impact 87 | . . . . . . . . . 87 . . . . . . . . . . . . . . . . Slashing 5988 | . . . . . . 419 217 . 634 316 996 1283 332 299 296 . . 150 . 132 433 481 . . . Piercing 1732 | . . . . . . . . . 74 . . . . . . 132 . 236 . . . 59 277 463 491 Entropic 1696 | . . . . . . . . . . . . . . . . . . . . 885 417 394 . . . Highest Corruption 8 | . 2 2 2 2 . 5 5 8 6 3 4 4 . . . . . . . 3 . 8 1 1 1 Average Corruption 2 | . 2 2 2 2 . 5 5 6 3 1 2 4 . . . . . . . 1 . 2 1 1 1 Corruption Purged 8 | . . . . . . . . . 4 3 . . . . . . . . . . . . . 1 . Corruption Blocked . | . . . . . . . . . . . . . . . . . . . . . . . . . . Effects 137 | . 13 6 8 1 . 14 26 . 19 1 5 18 . . . . . . . 9 . 5 . 2 10 Message Errors 30 | . 3 1 4 1 . 4 4 . 4 . 1 3 . . . . . . . . . . . 2 3 Matter Fused 26 | . 1 1 . . . 2 4 . 8 . 1 4 . . . . . . . 2 . 2 . . 1 Heat Flow Errors 12 | . 3 1 1 . . . 1 . 2 . 1 1 . . . . . . . 2 . . . . . Energy Discharges 23 | . 1 2 1 . . 3 5 . 3 1 1 3 . . . . . . . . . . . . 3 Parts Rejected 2 | . . . . . . . . . . . . 1 . . . . . . . . . . . . 1 Parts Fused 2 | . . . . . . . 1 . . . . . . . . . . . . . . . . . 1 Data Loss (minor) 26 | . 4 1 1 . . 4 6 . 2 . . 4 . . . . . . . 3 . 1 . . . Data Loss (major) 7 | . . . 1 . . . 2 . . . . 1 . . . . . . . 2 . 1 . . . Misfires 4 | . 1 . . . . . 2 . . . 1 . . . . . . . . . . . . . . Alerts 4 | . . . . . . 1 1 . . . . 1 . . . . . . . . . 1 . . . Weapon Failures 1 | . . . . . . . . . . . . . . . . . . . . . . . . . 1 Overload Shots . | . . . . . . . . . . . . . . . . . . . . . . . . . . Overflow Damage 2202 | . . . . . . 2 71 . 242 33 49 416 71 30 90 109 . . . 393 180 112 54 74 276 Projectiles . | . . . . . . . . . . . . . . . . . . . . . . . . . . Explosions 298 | . . . . . . . . . . . . 153 . . . 7 . . . . . 37 . . 101 Melee 1904 | . . . . . . 2 71 . 242 33 49 263 71 30 90 102 . . . 393 180 75 54 74 175 Knockbacks 4 | . . . . . . . . . . . . . . . . . . . . . . . . . 4 Impact . | . . . . . . . . . . . . . . . . . . . . . . . . . . Kinetic 4 | . . . . . . . . . . . . . . . . . . . . . . . . . 4 Secondary . | . . . . . . . . . . . . . . . . . . . . . . . . . . Self-Inflicted Damage 199 | . . . . . . . . . . . . 10 . . . 30 . . . . . 25 . . 134 Shots 4 | . . . . . . . . . . . . 1 . . . 1 . . . . . 1 . . 1 Rammed 4 | . 1 1 . . 2 . . . . . . . . . . . . . . . . . . . . Targets Rammed 7 | . 1 1 . . 2 3 . . . . . . . . . . . . . . . . . . . Kicked 3 | . . . . . . 3 . . . . . . . . . . . . . . . . . . . Crushed . | . . . . . . . . . . . . . . . . . . . . . . . . . . Highest Temperature 294 | 40 222 76 102 . 291 120 167 . 215 . 177 191 120 176 32 48 150 231 22 286 256 84 294 80 12 Average Temperature 40 | 17 42 33 63 . 86 33 61 . 47 . 32 17 27 87 20 12 102 26 3 40 127 32 79 16 5 Received Heat Transfer 2359 | . 180 135 . . 711 423 . . 108 . 30 152 27 . 18 61 . 124 . 12 18 . 9 . 351 Effects 1 | . . . . . . . . . . . . . . . . . . . . . 1 . . . . Energy Bleed 1 | . . . . . . . . . . . . . . . . . . . . . 1 . . . . Siege Activations . | . . . . . . . . . . . . . . . . . . . . . . . . . . Martial Activations . | . . . . . . . . . . . . . . . . . . . . . . . . . . Shielding Activations . | . . . . . . . . . . . . . . . . . . . . . . . . . . Robots Disrupted . | . . . . . . . . . . . . . . . . . . . . . . . . . . Combat Hostiles . | . . . . . . . . . . . . . . . . . . . . . . . . . . Robots Corrupted . | . . . . . . . . . . . . . . . . . . . . . . . . . . Combat Hostiles . | . . . . . . . . . . . . . . . . . . . . . . . . . . Parts Fried 1 | . . . . . . . . . 1 . . . . . . . . . . . . . . . . Impact Corruptions 1 | . . . . . . . . . 1 . . . . . . . . . . . . . . . . Robots Melted 1 | . . . . . . 1 . . . . . . . . . . . . . . . . . . . Combat Hostiles 1 | . . . . . . 1 . . . . . . . . . . . . . . . . . . . Parts Melted 17 | 4 1 . . . 3 8 . . . . . . . . . . . . . . . . . . 1 Heat Transferred 6599 | 666 740 . . . 2442 2664 37 . . . . 50 . . . . . . . . . . . . . Parts Sabotaged . | . . . . . . . . . . . . . . . . . . . . . . . . . . Parts Stolen . | . . . . . . . . . . . . . . . . . . . . . . . . . . Parts Stripped . | . . . . . . . . . . . . . . . . . . . . . . . . . . Power Chain Reactions . | . . . . . . . . . . . . . . . . . . . . . . . . . . Alert | -11 -10 -10 -10 -9 -8 -8 -8 -8 -6 -6 -6 -6 -5 -5 -5 -5 -4 -4 -4 -4 -3 -3 -2 -2 -2 ------- Run | Yrd Mat Min Exi Min Mat Sto Rec Scr Fac Was Fac Ext Fac Upp Upp War Pro Fac Was Fac Res Qua Res Tes Frg Maximum Alert Level 5 | . . . . . . 2 1 . 2 1 3 3 2 . . . . 1 . . . 1 1 . 5 Low Security (%) 54 | 100 100 100 . 100 100 25 82 . 60 89 11 . . . . . . 51 100 100 100 96 85 100 14 Level 1 17 | . . . . . . 64 17 . 28 10 12 26 41 . . . . 48 . . . 3 14 . 16 Level 2 11 | . . . . . . 10 . . 10 . 56 65 58 . . . . . . . . . . . 5 Level 3 4 | . . . . . . . . . . . 20 8 . . . . . . . . . . . . 13 Level 4 3 | . . . . . . . . . . . . . . . . . . . . . . . . . 14 Level 5 8 | . . . . . . . . . . . . . . . . . . . . . . . . . 34 High Security . | . . . . . . . . . . . . . . . . . . . . . . . . . . Max Security . | . . . . . . . . . . . . . . . . . . . . . . . . . . Peak Influence 3166 | 5 100 70 . . 167 450 248 . 635 205 775 922 497 . . . . 367 74 150 101 217 232 161 3166 Initial 434 | . . . . . . . 168 . . 205 73 333 434 . . . . . 74 1 75 33 104 32 64 Average 428 | . 27 13 . . 57 245 107 . 207 166 514 517 409 . . . . 166 44 54 69 96 124 106 1231 Influence Increases 14011 | 30 333 180 . . 622 1112 326 . 1229 10 1192 1139 439 10 55 532 45 629 56 326 202 489 378 289 4388 Destroy 0b10 Robot/C 4580 | . 140 160 . . 420 600 60 . 220 . 540 500 . . . 220 . . . 40 20 140 . . 1520 Destroy 0b10 Robot/NC 465 | 30 10 . . . 45 15 10 . 40 5 35 60 20 10 10 . . 10 . 20 20 10 5 10 100 Destroy Leader 828 | . 44 20 . . 110 140 . . 66 . 130 54 . . . . . 2 . 16 4 30 2 . 210 Allied During Kill 585 | . . . . . 2 131 23 . 13 5 228 141 . . . 42 . . . . . . . . . Successful Hack 893 | . 34 . . . . 59 9 . 150 . 15 35 123 . . . . 49 . . 45 48 41 141 144 Select Force Hacks 210 | . 30 . . . . . 180 . . . . . . . . . . . . . . . . . . Disable Machine 840 | . . . . . 15 75 15 . 165 . 60 75 30 . . . . 15 . 15 . 105 . 60 210 Anti-Garrison Action 150 | . . . . . . . . . . . . . . . . . . . . . . . . . 150 Destroy Structure 1635 | . . . . . . 17 29 . 65 . 64 109 56 . . . . 148 56 70 38 96 60 48 779 Partial Spotted 780 | . . . . . 15 . . . 180 . 15 45 105 . . . . 30 . 90 45 60 15 30 150 Lose Combat Pursuer 3045 | . 75 . . . 15 75 . . 330 . 105 120 105 . 45 270 45 375 . 75 30 . 255 . 1125 Influence Decreases 10846 | 30 333 180 . . 622 679 748 11 643 491 616 934 842 279 152 441 253 415 268 185 284 364 506 232 1338 Entered New Map 2431 | . . . . . . . 265 11 . 381 32 348 452 179 42 117 208 . 140 1 68 28 82 26 51 Time Decay 6046 | 30 333 172 . . 402 429 453 . 412 90 294 356 380 100 90 234 45 305 80 184 206 286 204 206 755 Search Patrol Dispatched 300 | . . . . . . . . . 100 . . . . . . . . 100 . . . . . . 100 Lost Part 768 | . . 8 . . 110 60 10 . 20 . 10 30 . . 20 40 . 10 . . . 50 10 . 390 Lost Ally 959 | . . . . . 20 190 20 . 111 20 280 200 10 . . 50 . . 48 . 10 . . . . Purge Threat 342 | . . . . . 90 . . . . . . . . . . . . . . . . . 210 . 42 Squads Dispatched 101 | . 4 . . . 1 7 . . 13 . 18 5 7 . . . . 9 . 7 3 7 8 3 9 Investigation 48 | . 2 . . . . 1 . . 10 . 6 1 4 . . . . 6 . 5 1 3 4 . 5 Extermination 22 | . . . . . . . . . 3 . 1 . 3 . . . . 3 . 2 1 3 2 2 2 Reinforcement 20 | . 2 . . . 1 3 . . . . 6 1 . . . . . . . . 1 1 2 1 2 Assault 3 | . . . . . . . . . . . . 3 . . . . . . . . . . . . . Garrison 8 | . . . . . . 3 . . . . 5 . . . . . . . . . . . . . . Intercept . | . . . . . . . . . . . . . . . . . . . . . . . . . . Searches Triggered 3 | . . . . . . . . . 1 . . . . . . . . 1 . . . . . . 1 Unchained Authorized 2 | . . . . . . . . . . . . . . . . . . . . . . 1 . 1 . Construction Impeded 3 | . . . . . . 1 . . . . 1 1 . . . . . . . . . . . . . Haulers Reinforced 1 | . . . . . . . . . . . 1 . . . . . . . . . . . . . . Active Scanning Responses . | . . . . . . . . . . . . . . . . . . . . . . . . . . Cargo Convoy Interrupts . | . . . . . . . . . . . . . . . . . . . . . . . . . . Stealth | -11 -10 -10 -10 -9 -8 -8 -8 -8 -6 -6 -6 -6 -5 -5 -5 -5 -4 -4 -4 -4 -3 -3 -2 -2 -2 --------- Run | Yrd Mat Min Exi Min Mat Sto Rec Scr Fac Was Fac Ext Fac Upp Upp War Pro Fac Was Fac Res Qua Res Tes Frg Distress Signals 32 | . 2 . . . 4 2 . . . . . 1 1 . . 1 . 1 . . 4 . 2 . 14 Communications Jammed 109 | . . . . . . . . . 11 . . 16 1 . . . . 13 . . 20 19 15 . 14 Distress Signals 91 | . . . . . . . . . 11 . . 16 . . . . . 13 . . 19 19 7 . 6 Times Spotted 804 | . 20 8 . . 39 40 4 . 37 1 8 46 16 . 3 82 5 41 4 14 12 29 28 5 362 Peak Tracking Total 18 | . 5 3 . . 6 8 2 . 12 . 4 13 7 . 3 18 5 17 3 7 4 9 12 2 16 Tactical Retreats 100 | . 4 . . . 1 4 . . 7 . 2 5 4 . 2 7 1 9 . 2 2 . 8 . 42 ECM-based Alert Blocks 8 | . . . . . . . . . . . . . . . . . . 8 . . . . . . . Traps | -11 -10 -10 -10 -9 -8 -8 -8 -8 -6 -6 -6 -6 -5 -5 -5 -5 -4 -4 -4 -4 -3 -3 -2 -2 -2 ------- Run | Yrd Mat Min Exi Min Mat Sto Rec Scr Fac Was Fac Ext Fac Upp Upp War Pro Fac Was Fac Res Qua Res Tes Frg Traps Triggered 28 | . 4 . . . . 1 . . 3 . 5 2 . . . . . 2 . 2 . 3 . 2 4 Indirectly . | . . . . . . . . . . . . . . . . . . . . . . . . . . Trap Hack Attempts . | . . . . . . . . . . . . . . . . . . . . . . . . . . Triggered . | . . . . . . . . . . . . . . . . . . . . . . . . . . Disarmed . | . . . . . . . . . . . . . . . . . . . . . . . . . . Reprogrammed . | . . . . . . . . . . . . . . . . . . . . . . . . . . Reused . | . . . . . . . . . . . . . . . . . . . . . . . . . . Traps Extracted . | . . . . . . . . . . . . . . . . . . . . . . . . . . Installed . | . . . . . . . . . . . . . . . . . . . . . . . . . . Triggered . | . . . . . . . . . . . . . . . . . . . . . . . . . . Machines | -11 -10 -10 -10 -9 -8 -8 -8 -8 -6 -6 -6 -6 -5 -5 -5 -5 -4 -4 -4 -4 -3 -3 -2 -2 -2 ---------- Run | Yrd Mat Min Exi Min Mat Sto Rec Scr Fac Was Fac Ext Fac Upp Upp War Pro Fac Was Fac Res Qua Res Tes Frg Machines Disabled 58 | . . . . . 1 5 1 . 11 . 4 5 2 . . 1 . 1 . 1 . 7 . 4 15 Max in Single Turn 4 | . . . . . 1 1 1 . 1 . 1 4 1 . . 1 . 1 . 1 . 1 . 1 3 Garrison Access 4 | . . . . . . . . . 2 . . . . . . . . . . . . 1 . . 1 Energy Cycler 3 | . . . . . . . . . . . . 3 . . . . . . . . . . . . . Machines Repaired . | . . . . . . . . . . . . . . . . . . . . . . . . . . Machines Dismantled . | . . . . . . . . . . . . . . . . . . . . . . . . . . Machines Sabotaged . | . . . . . . . . . . . . . . . . . . . . . . . . . . Overloaded Fab Kills . | . . . . . . . . . . . . . . . . . . . . . . . . . . Hacking | -11 -10 -10 -10 -9 -8 -8 -8 -8 -6 -6 -6 -6 -5 -5 -5 -5 -4 -4 -4 -4 -3 -3 -2 -2 -2 --------- Run | Yrd Mat Min Exi Min Mat Sto Rec Scr Fac Was Fac Ext Fac Upp Upp War Pro Fac Was Fac Res Qua Res Tes Frg Machines Accessed 202 | . 7 . 1 . 4 12 12 8 29 . 14 6 17 . . 2 . 16 . 11 6 16 9 15 17 Terminals 102 | . 5 . . . 4 10 6 . 10 . 6 6 6 . . . . 5 . 6 4 10 4 10 10 Fabricators 11 | . . . . . . . . . 5 . . . 1 . . . . 3 . . . . . 2 . Repair Stations 18 | . 1 . . . . . . . 3 . 1 . 2 . . . . 3 . 2 . 2 2 1 1 Recycling Units 35 | . 1 . . . . 2 6 . 6 . 5 . 4 . . . . 4 . 3 . . 1 . 3 Scanalyzers 18 | . . . . . . . . . 2 . 2 . 3 . . . . 1 . . 1 3 2 2 2 Garrison Access 7 | . . . . . . . . . 3 . . . 1 . . . . . . . 1 1 . . 1 Total Hacks 557 | . 20 . 1 . 13 36 37 35 64 . 30 15 44 . . 5 . 48 . 27 16 45 27 34 60 Successful 304 | . 11 . 1 . 5 19 14 35 37 . 14 4 26 . . 5 . 29 . 14 7 20 14 18 31 Failed 250 | . 9 . . . 8 17 23 . 27 . 16 11 17 . . . . 18 . 13 9 25 12 16 29 Catastrophic 40 | . . . . . 4 1 5 . 7 . 3 2 2 . . . . 1 . 3 1 4 2 4 1 Database Lockouts 3 | . . . . . . . . . . . . . 1 . . . . 1 . . . . 1 . . Manual 275 | . 15 . . . 6 18 20 . 36 . 14 9 18 . . . . 29 . 17 6 22 19 15 31 Terminals 299 | . 15 . . . 13 33 14 . 28 . 10 15 16 . . . . 17 . 18 11 24 20 21 44 Fabricators 32 | . . . . . . . . . 12 . . . 6 . . . . 12 . . . . . 2 . Repair Stations 40 | . 2 . . . . . . . 6 . 4 . 3 . . . . 6 . 5 . 8 2 2 2 Recycling Units 82 | . 3 . . . . 3 23 . 9 . 12 . 8 . . . . 10 . 4 . . 3 . 7 Scanalyzers 50 | . . . . . . . . . 5 . 4 . 10 . . . . 3 . . 3 10 2 9 4 Garrison Access 13 | . . . . . . . . . 4 . . . 1 . . . . . . . 2 3 . . 3 Terminal Hacks 112 | . 2 . 1 . 4 10 1 35 7 . 2 2 3 . . 5 . 4 . 3 2 5 6 3 17 Record 34 | . . . 1 . . . . 29 . . . . . . . . . . . . . 3 . . 1 Robot Analysis 6 | . . . . . . 1 . 5 . . . . . . . . . . . . . . . . . Prototype ID Bank 10 | . . . . . 1 . 1 . . . . . . . . 4 . . . . . 1 1 1 1 Open Door 8 | . . . . . . 5 . . . . . 1 . . . 1 . . . . 1 . . . . Branch Access Points 4 | . . . . . . 1 . . . . . . 1 . . . . . . 1 . . 1 . . Emergency Access Points 1 | . . . . . . . . . . . . . . . . . . . . . . . . . 1 Machine Index 1 | . . . . . . . . . . . . . . . . . . . . . . . . . 1 Terminal Index 8 | . . . . . . 1 . . 1 . 1 . . . . . . 1 . . 1 . 1 1 1 Scanalyzer Index 1 | . . . . . . . . . 1 . . . . . . . . . . . . . . . . Unreport Threat 5 | . . . . . 2 . . . . . . . . . . . . . . . . . 2 . 1 Locate Traps 13 | . 1 . . . . . . . 4 . . 1 2 . . . . 1 . . . 1 . . 3 Maintenance Status 2 | . . . . . . . . . . . . . . . . . . . . . . . . . 2 Security Status 1 | . . . . . . . . . . . . . . . . . . . . . . . . . 1 Surveillance Status 1 | . . . . . . . . . . . . . . . . . . . . . . . . . 1 Recall Extermination 2 | . . . . . . . . . 1 . . . . . . . . . . . . . 1 . . Hauler Manifests 7 | . 1 . . . 1 1 . . . . 1 . . . . . . 2 . 1 . . . . . Registered Prototypes 1 | . . . . . . . . . . . . . . . . . . . . . . . . . 1 Zone Layout 6 | . . . . . . 1 . . . . . . . . . . . . . 1 . . . 1 3 Proto ID Catalog 1 | . . . . . . . . 1 . . . . . . . . . . . . . . . . . Fabricator Hacks 10 | . . . . . . . . . 3 . . . 1 . . . . 4 . . . . . 2 . Network Status 7 | . . . . . . . . . 2 . . . 1 . . . . 2 . . . . . 2 . Build 3 | . . . . . . . . . 1 . . . . . . . . 2 . . . . . . . Repair Station Hacks 14 | . . . . . . . . . 4 . 2 . 1 . . . . 3 . 1 . 1 . 2 . Scan Component 6 | . . . . . . . . . 2 . 1 . . . . . . 2 . . . . . 1 . Repair 5 | . . . . . . . . . 2 . 1 . . . . . . 1 . . . . . 1 . Refit 3 | . . . . . . . . . . . . . 1 . . . . . . 1 . 1 . . . Recycling Unit Hacks 12 | . 1 . . . . 2 4 . . . 1 . 1 . . . . 1 . 1 . . . . 1 Retrieve Components 12 | . 1 . . . . 2 4 . . . 1 . 1 . . . . 1 . 1 . . . . 1 Scanalyzer 31 | . . . . . . . . . 5 . 1 . 7 . . . . 1 . . 3 6 1 5 2 Insert Component 6 | . . . . . . . . . . . . . 2 . . . . . . . . 3 . 1 . Analyze 1 | . . . . . . . . . . . . . . . . . . . . . . . . 1 . Retrieve Study 24 | . . . . . . . . . 5 . 1 . 5 . . . . 1 . . 3 3 1 3 2 Garrison Access Hacks 3 | . . . . . . . . . 2 . . . . . . . . . . . . 1 . . . Seal Access 3 | . . . . . . . . . 2 . . . . . . . . . . . . 1 . . . Unauthorized Hacks 122 | . 8 . . . 1 7 9 . 16 . 8 2 13 . . . . 16 . 9 2 7 7 6 11 Terminals 71 | . 7 . . . 1 6 3 . 5 . 2 2 7 . . . . 8 . 4 2 5 4 6 9 Assimilate 10 | . . . . . . 1 . . 1 . . . 2 . . . . 1 . . 1 2 . 1 1 Botnet 46 | . 2 . . . 1 2 3 . 3 . 2 2 5 . . . . 4 . 3 1 3 3 5 7 Disrupt 1 | . . . . . . . . . 1 . . . . . . . . . . . . . . . . Operators 3 | . . . . . . . . . . . . . . . . . . . . 1 . . 1 . 1 Skim 11 | . 5 . . . . 3 . . . . . . . . . . . 3 . . . . . . . Fabricators 9 | . . . . . . . . . 4 . . . 2 . . . . 3 . . . . . . . Report 1 | . . . . . . . . . 1 . . . . . . . . . . . . . . . . Prioritize 1 | . . . . . . . . . . . . . . . . . . 1 . . . . . . . Liberate 3 | . . . . . . . . . 1 . . . 1 . . . . 1 . . . . . . . Haulers 3 | . . . . . . . . . 1 . . . 1 . . . . 1 . . . . . . . Recompile 1 | . . . . . . . . . 1 . . . . . . . . . . . . . . . . Repair Stations 11 | . . . . . . . . . 2 . 1 . . . . . . 1 . 2 . 2 2 . 1 Mechanics 2 | . . . . . . . . . 1 . . . . . . . . . . 1 . . . . . Patch 9 | . . . . . . . . . 1 . 1 . . . . . . 1 . 1 . 2 2 . 1 Recycling Units 31 | . 1 . . . . 1 6 . 5 . 5 . 4 . . . . 4 . 3 . . 1 . 1 Mask 1 | . . . . . . 1 . . . . . . . . . . . . . . . . . . . Tunnel 7 | . 1 . . . . . 6 . . . . . . . . . . . . . . . . . . Fedlink 23 | . . . . . . . . . 5 . 5 . 4 . . . . 4 . 3 . . 1 . 1 Scanalyzers . | . . . . . . . . . . . . . . . . . . . . . . . . . . Garrison Access . | . . . . . . . . . . . . . . . . . . . . . . . . . . Data Cores Recovered 3 | . . . . . . . . . . . . . . . . . . . . 1 . . . . 2 Used 1 | . . . . . . . . . . . . . . . . . . . . 1 . . . . . Hacking Detections 152 | . 7 . . . 4 10 10 . 20 . 12 6 13 . . . . 11 . 7 5 13 5 14 15 Full Trace Events 11 | . . . . . . . . . 3 . . 1 . . . . . 1 . 1 1 1 1 . 2 Feedback Events 2 | . . . . . . . . . 1 . . . . . . . . . . . . . 1 . . Corruption 2 | . . . . . . . . . 1 . . . . . . . . . . . . . 1 . . Feedback Blocked 1 | . . . . . . . . . . . . . . . . . . . . 1 . . . . . Robot Schematics Acquired . | . . . . . . . . . . . . . . . . . . . . . . . . . . Robots Built . | . . . . . . . . . . . . . . . . . . . . . . . . . . Authchips . | . . . . . . . . . . . . . . . . . . . . . . . . . . Time . | . . . . . . . . . . . . . . . . . . . . . . . . . . Total Robot Build Rating . | . . . . . . . . . . . . . . . . . . . . . . . . . . Part Schematics Acquired 1 | . . . . . . . . . . . . . . . . . . . . . . . . 1 . Parts Built 5 | . . . . . . . . . 2 . . . . . . . . 3 . . . . . . . Authchips . | . . . . . . . . . . . . . . . . . . . . . . . . . . Time 331 | . . . . . . . . . 128 . . . . . . . . 203 . . . . . . . Total Part Build Rating 42 | . . . . . . . . . 16 . . . . . . . . 26 . . . . . . . Part Studies Acquired 23 | . . . . . . . . . 4 . 1 . 5 . . . . 1 . . 3 3 1 3 2 Parts Repaired 5 | . . . . . . . . . 2 . 1 . . . . . . 1 . . . . . 1 . Time 227 | . . . . . . . . . 57 . 50 . . . . . . 108 . . . . . 12 . Parts Recycled . | . . . . . . . . . . . . . . . . . . . . . . . . . . Recycled Matter . | . . . . . . . . . . . . . . . . . . . . . . . . . . Retrieved Matter . | . . . . . . . . . . . . . . . . . . . . . . . . . . Retrieved Components 25 | . 2 . . . . 7 6 . . . 1 . 2 . . . . 3 . 1 . . . . 3 Parts Scanalyzed 2 | . . . . . . . . . . . . . 1 . . . . . . . . . . 1 . Part Schematics Acquired 1 | . . . . . . . . . . . . . . . . . . . . . . . . 1 . Parts Damaged . | . . . . . . . . . . . . . . . . . . . . . . . . . . Bothacking | -11 -10 -10 -10 -9 -8 -8 -8 -8 -6 -6 -6 -6 -5 -5 -5 -5 -4 -4 -4 -4 -3 -3 -2 -2 -2 ------------ Run | Yrd Mat Min Exi Min Mat Sto Rec Scr Fac Was Fac Ext Fac Upp Upp War Pro Fac Was Fac Res Qua Res Tes Frg Used RIF Installer . | . . . . . . . . . . . . . . . . . . . . . . . . . . Robots Hacked . | . . . . . . . . . . . . . . . . . . . . . . . . . . Non-combat . | . . . . . . . . . . . . . . . . . . . . . . . . . . Combat . | . . . . . . . . . . . . . . . . . . . . . . . . . . Robot Hacks Applied . | . . . . . . . . . . . . . . . . . . . . . . . . . . Relay Couplers Released 2 | . . . . . . . . . . . . . . . . . . . . . . . . . 2 Machine Destruction 2 | . . . . . . . . . . . . . . . . . . . . . . . . . 2 Fabnet Peak Effective % . | . . . . . . . . . . . . . . . . . . . . . . . . . . Robots Rewired 28 | . . . . . . 1 11 . . . . 11 . . . 5 . . . . . . . . . Allies Hacked 1 | . . . . . . . . . . . 1 . . . . . . . . . . . . . . Hacks Repelled . | . . . . . . . . . . . . . . . . . . . . . . . . . . Allies | -11 -10 -10 -10 -9 -8 -8 -8 -8 -6 -6 -6 -6 -5 -5 -5 -5 -4 -4 -4 -4 -3 -3 -2 -2 -2 -------- Run | Yrd Mat Min Exi Min Mat Sto Rec Scr Fac Was Fac Ext Fac Upp Upp War Pro Fac Was Fac Res Qua Res Tes Frg Total Allies 87 | . . . . 5 . 11 11 1 1 20 . 12 1 . . 5 . . 18 . 1 . . 1 . Largest Group 20 | . . . . 5 5 10 11 10 10 20 19 6 1 . . 5 . . 18 . 1 . . 1 . Highest-Rated Group 832 | . . . . 87 87 173 152 169 169 832 786 235 23 . . 261 . . 656 . 45 . . 26 . Highest-Rated Ally 159 | . . . . 31 31 29 34 67 67 50 50 159 23 . . 64 . . 50 . 45 . . 26 . Initial UFD Resources 120 | . . . . . . . . . 23 43 43 53 57 75 75 75 79 79 97 97 106 106 110 120 120 Total Orders 12 | . . . . . . . . 8 . . . . . . . 4 . . . . . . . . . STAY 7 | . . . . . . . . 4 . . . . . . . 3 . . . . . . . . . FOLLOW 5 | . . . . . . . . 4 . . . . . . . 1 . . . . . . . . . Ally Attacks 581 | . . . . . 14 105 17 . 39 6 153 105 . . . 23 . . 119 . . . . . . Total Damage 15492 | . . . . . 227 1164 282 . 982 143 4991 3247 . . . 697 . . 3759 . . . . . . Kills 94 | . . . . . 1 12 5 . 11 1 32 19 . . . 3 . . 10 . . . . . . Allies Corrupted 2 | . . . . . . . . . 1 . 1 . . . . . . . . . . . . . . Allies Melted 6 | . . . . . . . . . . . . 1 . . . . . . . . . . . . 5 Intel | -11 -10 -10 -10 -9 -8 -8 -8 -8 -6 -6 -6 -6 -5 -5 -5 -5 -4 -4 -4 -4 -3 -3 -2 -2 -2 ------- Run | Yrd Mat Min Exi Min Mat Sto Rec Scr Fac Was Fac Ext Fac Upp Upp War Pro Fac Was Fac Res Qua Res Tes Frg Active Infowar (turns) 19841 | 19 1258 . . . 773 677 1200 3505 1060 185 653 496 878 215 197 1098 467 797 160 450 426 622 440 432 3833 Optics 8636 | . . . . . 115 . . . . . 1 . . . . 893 467 797 160 450 426 622 440 432 3833 Sensors 10772 | . . . . . . 621 . 1431 688 185 647 336 878 215 197 1076 465 797 160 446 426 622 440 432 710 Seismic 1536 | 19 1258 . . . . . . . 259 . . . . . . . . . . . . . . . . T.N.C. 658 | . . . . . 658 . . . . . . . . . . . . . . . . . . . . Machine Analysis 8340 | . . . . . . 535 1200 3505 1060 185 653 334 293 215 197 163 . . . . . . . . . Cloaking 698 | . . . . . . . . . . . . . . . . 4 . . . . . . . 4 690 Jamming 4279 | . . . . . . . . . 711 1 . 128 45 1 1 3 88 616 160 37 400 619 440 432 597 ECM 26 | . . . . . . . . . . . . . . . . . . 26 . . . . . . . Robot Analysis Total 6 | . . . . . . 1 . 5 . . . . . . . . . . . . . . . . . Derelict Logs Recovered 5 | . . . . . . . . . . . . . . 1 3 . 1 . . . . . . . . Drone Launches . | . . . . . . . . . . . . . . . . . . . . . . . . . . Drone Recoveries . | . . . . . . . . . . . . . . . . . . . . . . . . . . Exploration | -11 -10 -10 -10 -9 -8 -8 -8 -8 -6 -6 -6 -6 -5 -5 -5 -5 -4 -4 -4 -4 -3 -3 -2 -2 -2 ------------- Run | Yrd Mat Min Exi Min Mat Sto Rec Scr Fac Was Fac Ext Fac Upp Upp War Pro Fac Was Fac Res Qua Res Tes Frg Turns Passed 23159 | 256 1262 809 695 129 1240 1068 1200 3505 1060 185 653 818 889 215 197 1098 467 797 160 450 426 622 440 432 4086 Spaces Moved 31554 | 126 552 457 332 54 694 622 793 3054 2467 272 1774 1517 1728 633 517 2203 565 1704 259 1040 708 1400 927 800 6356 Core 200 | 12 . . . . . . . 187 . . . . . . . . . . . . . . 1 . . Treads 1560 | 114 552 457 332 54 51 . . . . . . . . . . . . . . . . . . . . Legs 4809 | . . . . . 521 622 793 2867 6 . . . . . . . . . . . . . . . . Wheels 122 | . . . . . 122 . . . . . . . . . . . . . . . . . . . . Hover . | . . . . . . . . . . . . . . . . . . . . . . . . . . Flight 24863 | . . . . . . . . . 2461 272 1774 1517 1728 633 517 2203 565 1704 259 1040 708 1400 926 800 6356 Fastest Speed 17 | 50 160 160 160 240 105 105 105 50 26 26 26 26 22 26 26 19 29 19 19 18 25 28 17 20 19 Average Speed 48 | 149 160 160 207 240 117 112 105 105 26 26 26 27 23 26 26 26 29 25 25 24 28 28 25 26 33 Slowest Speed 1000 | 160 240 160 240 240 186 185 105 120 112 26 26 103 97 26 29 29 34 26 26 28 29 114 1000 29 125 Overloaded Moves 379 | . . . . . . . . . . . . . . . . 17 . 34 3 26 . . 24 58 217 Propulsion Burnouts . | . . . . . . . . . . . . . . . . . . . . . . . . . . Robots Hopped 192 | . . . . . . . . . 12 . 15 10 10 . . 11 . 16 . 11 2 9 19 12 65 Potential Cave-ins 67 | . . . . . . . . . . . . . . 2 . . . . . . 3 . 2 . 60 Cave-ins Triggered . | . . . . . . . . . . . . . . . . . . . . . . . . . . Teleports 1 | . . . . . . . . . . . . . . . . . . . . . . . . . 1 Exploration Rate (%) 62 | 6 91 79 50 21 52 74 98 90 58 95 43 73 42 72 63 95 65 44 95 33 20 95 34 81 63 Regions Visited 25 Branch Regions 14 Pre-discovered Areas 14 | . 1 . 1 . . . 6 3 1 . . . . . 1 . 1 . . . . . . . . Known Exits Taken 15 | . . . 1 . 1 1 . . . . 1 1 1 1 1 1 1 . . 1 1 1 1 1 . Unknown Exits Taken 6 | 1 1 1 . 1 . . 1 1 . . . . . . . . . . . . . . . . . Scrap Searched 20 | . . . . 1 . . . 6 . . . . . 4 4 . 5 . . . . . . . . Spaces Dug 373 | . . . . . . 14 10 . 43 . 19 3 28 4 3 1 5 68 . 33 22 22 18 16 64 Terrain Destroyed 1039 | . . . . . . 14 10 . 52 . 19 186 28 9 4 100 5 77 . 37 28 48 24 16 382 Melee 343 | . . . . . . 14 10 . 43 . 19 3 28 2 2 1 2 64 . 31 16 20 15 16 57 Projectile 168 | . . . . . . . . . . . . . . 7 2 . 3 13 . 6 12 2 9 . 114 AOE 528 | . . . . . . . . . 9 . . 183 . . . 99 . . . . . 26 . . 211 Terrain Rammed . | . . . . . . . . . . . . . . . . . . . . . . . . . . Walls Destroyed . | . . . . . . . . . . . . . . . . . . . . . . . . . . Machines Disabled . | . . . . . . . . . . . . . . . . . . . . . . . . . . Actions | -11 -10 -10 -10 -9 -8 -8 -8 -8 -6 -6 -6 -6 -5 -5 -5 -5 -4 -4 -4 -4 -3 -3 -2 -2 -2 --------- Run | Yrd Mat Min Exi Min Mat Sto Rec Scr Fac Was Fac Ext Fac Upp Upp War Pro Fac Was Fac Res Qua Res Tes Frg Total 37288 | 160 863 497 341 54 944 871 1140 3363 2757 376 1893 1845 2149 664 564 2681 861 1916 352 1142 877 1538 1057 961 7422 Wait 2996 | . 237 3 . . 51 98 167 142 140 92 37 197 325 5 33 324 274 96 86 35 102 59 88 89 316 Move 31179 | 125 551 456 331 53 693 621 792 3053 2444 271 1745 1498 1707 632 516 2186 564 1675 258 1017 703 1381 889 776 6242 Hop 158 | . . . . . . . . . 11 . 13 8 10 . . 5 . 12 . 11 2 9 18 11 48 Pick Up 344 | 8 16 4 3 1 32 24 4 76 16 2 11 9 18 4 1 14 2 8 1 4 5 10 7 7 57 Fast Attach 176 | 5 4 . . . 5 1 . 12 15 1 6 2 11 . 1 22 4 4 . 1 2 6 . 11 63 Attach 109 | 2 . 2 2 . 14 8 1 4 10 1 1 3 5 1 1 7 1 2 1 1 4 4 2 4 28 Detach 59 | . . . . . 2 3 1 5 5 1 2 1 4 . . 7 2 1 . . 1 1 . 6 17 Swap 281 | . 5 2 2 . 15 15 2 1 20 1 8 21 7 7 3 17 3 25 3 16 8 7 20 5 68 Drop 397 | 2 9 4 3 . 24 21 4 70 32 2 14 6 27 2 . 32 5 10 3 5 7 9 4 17 85 Fire 703 | 18 40 25 . . 104 42 . . 2 . . 12 1 7 2 25 3 13 . 6 17 8 9 . 369 Melee 557 | . . . . . 2 32 14 . 62 5 41 46 34 6 7 5 2 69 . 46 26 44 20 25 71 Ram . | . . . . . . . . . . . . . . . . . . . . . . . . . . Kick 3 | . . . . . . 3 . . . . . . . . . . . . . . . . . . . Crush 4 | . 1 1 . . 2 . . . . . . . . . . . . . . . . . . . . Escape Stasis 94 | . . . . . . . . . . . 15 30 . . . . . 1 . . . . . 10 38 Rewire 207 | . . . . . . 3 155 . . . . 12 . . . 37 . . . . . . . . . Trap . | . . . . . . . . . . . . . . . . . . . . . . . . . . Miscellaneous 21 | . . . . . . . . . . . . . . . . . 1 . . . . . . . 20 Route ------- -11/Scrapyard -10/Materials (discovered 6 exits: *Mat x3 / [*Min x2] / Sub) -10/Mines (discovered 3 exits: *Mat / *Exi / *Sub) -10/Exiles (discovered 2 exits: *Min x2) -9/Mines -8/Materials (discovered 3 exits: *Fac x2 / *Sto) -8/Storage (discovered 2 exits: *Fac / *Rec) -8/Recycling (discovered 2 exits: *Fac / *Scr) -8/Scraptown (discovered 2 exits: *Fac x2) -6/Factory (discovered 6 exits: *Fac x2 / *Low x2 / Ext x2) -6/Waste -6/Factory (discovered 3 exits: *Low x2 / *Ext) -6/Extension -5/Factory (discovered 3 exits: *Fac / *Upp x2) -5/Upper Caves -5/Upper Caves (discovered 2 exits: Fac / *War) -5/Warlord -4/Proximity Caves -4/Factory (discovered 7 exits: *Res x4 / *Upp x2 / Arm) -4/Waste -4/Factory (discovered 4 exits: *Res / Upp x2 / Arm) -3/Research -3/Quarantine -2/Research (discovered 4 exits: *Acc x2 / *Tes x2) -2/Testing (discovered 3 exits: *Acc / [*Sec] / *Frg) -2/Protoforge History --------- Turn | Location | Event 6 | -11/Scrapyard | Discovered new exit (range 16) 257 | -11/Scrapyard | Entered Materials 316 | -10/Materials | Build established: Mutant 510 | -10/Materials | Discovered new exit (range 6) 783 | -10/Materials | Discovered new exit (range 16) 989 | -10/Materials | Discovered new exit (range 14) 1072 | -10/Materials | Learned Storage stockpile data 1170 | -10/Materials | Discovered new exit (range 10) 1220 | -10/Materials | Identified exit to Materials 1220 | -10/Materials | Identified exit to Subcaves 1220 | -10/Materials | Learned location of 1 exit from Materials 1332 | -10/Materials | Learned location of 2 exits from Materials 1375 | -10/Materials | Loaded intel: 25 non-interactive machine locations 1519 | -10/Materials | Entered Mines 1903 | -10/Mines | Found a hidden stash of uninstalled traps 1943 | -10/Mines | Discovered exit to Materials (range 9) 1957 | -10/Mines | Deemed a non-threat by the Exiles lab entrance 1957 | -10/Mines | Discovered new exit (range 5) 1986 | -10/Mines | Core integrity fell below 50% 2030 | -10/Mines | Discovered exit to Subcaves (range 10) 2146 | -10/Mines | Build established: Scavenger-Mutant 2328 | -10/Mines | Entered Exiles 2329 | -10/Exiles | Identified exit to Mines 2367 | -10/Exiles | Met 8R-AWN 2395 | -10/Exiles | Met EX-HEX 2459 | -10/Exiles | Met EX-DEC 2465 | -10/Exiles | Learned location of Zion (-6) 2661 | -10/Exiles | Build established: Mutant 3023 | -10/Exiles | Entered Mines 3028 | -9/Mines | Assisted by bots powering up and referring to "LRC-V3" 3059 | -9/Mines | Met a Derelict bent on vengeance 3135 | -9/Mines | Discovered new exit (range 6) 3152 | -9/Mines | Entered Materials 3152 | -8/Materials | Accompanied by 5 allies 3152 | -8/Materials | Evolved 4 slots: Propulsion x2, Utility x2 3153 | -8/Materials | Identified exit to Factory 3153 | -8/Materials | Identified exit to Storage 3157 | -8/Materials | Led the pair of lost Derelicts to an unsafe place 3248 | -8/Materials | Lost 5 allies 3280 | -8/Materials | Lost 4 parts (2p1n1u) 3441 | -8/Materials | Build established: Scavenger-Mutant 3671 | -8/Materials | Lost 7 parts (1p5n1w) 4252 | -8/Materials | Build established: Mutant 4392 | -8/Materials | Entered Storage 4510 | -8/Storage | Core integrity fell below 50% 4523 | -8/Storage | Garrison activated, responded to threat 4625 | -8/Storage | Destroyed 10 combat bots 4788 | -8/Storage | Lost 3 parts (1p1u1w) 5033 | -8/Storage | Core integrity fell below 20% 5043 | -8/Storage | Assisted by bots powering up and referring to "LRC-V3" 5152 | -8/Storage | Lost 3 allies 5175 | -8/Storage | Identified exit to Recycling 5220 | -8/Storage | Discovered exit to Factory (range 16) 5353 | -8/Storage | Build established: Commander-Mutant 5456 | -8/Storage | Used back door to open Recycling access 5460 | -8/Storage | Entered Recycling 5698 | -8/Recycling | Build established: Scavenger-Mutant 6321 | -8/Recycling | Discovered new exit (range 5) 6363 | -8/Recycling | Build established: Commander-Mutant 6576 | -8/Recycling | Scanned before Scraplab entrance 6591 | -8/Recycling | Entered Scraplab 6599 | -8/Recycling | Discovered new exit (range 3) 6660 | -8/Recycling | Entered Scraptown 6660 | -8/Scraptown | Accompanied by 9 allies 6662 | -8/Scraptown | System corruption cleaned by C-Scrubber 6881 | -8/Scraptown | Visited Junk Repository 6905 | -8/Scraptown | Visited Scrapoid Research Area 7108 | -8/Scraptown | Heard Great Nut preacher, LISTEN AND RECITE! 7124 | -8/Scraptown | Discovered new exit (range 11) 7193 | -8/Scraptown | Visited Red Mages 7232 | -8/Scraptown | Visited The Evicted 7252 | -8/Scraptown | Visited SPCMW 7285 | -8/Scraptown | Visited Cyclists 7299 | -8/Scraptown | Visited UFD Registry 7299 | -8/Scraptown | Registered with UFD as "Toolgunner" 7327 | -8/Scraptown | Entered Cyclist Reading Room 7355 | -8/Scraptown | Visited Assassins FH 7472 | -8/Scraptown | Discovered new exit (range 5) 7562 | -8/Scraptown | Visited Analyses Database 7585 | -8/Scraptown | Visited Curators Association 7679 | -8/Scraptown | Visited Research Penetration Think Tank 7705 | -8/Scraptown | Visited Abandonware Association 7716 | -8/Scraptown | Learned abandonware demo "REBOOT5.EXE" 7741 | -8/Scraptown | Visited Junk Cannon Lab 7785 | -8/Scraptown | Visited Modified Component R&D 7842 | -8/Scraptown | Visited Science Guys 7882 | -8/Scraptown | Visited Derelict Rescue Squad 7890 | -8/Scraptown | Found DRS Beacon 7910 | -8/Scraptown | Visited Cartography Club 7962 | -8/Scraptown | Learned location of Armory (-4) 7962 | -8/Scraptown | Learned location of Testing (-2) 7962 | -8/Scraptown | Learned 12 Materials zone layouts 7962 | -8/Scraptown | Learned 16 Factory zone layouts 7962 | -8/Scraptown | Learned 20 Factory zone layouts 7962 | -8/Scraptown | Learned 8 Access zone layouts 7962 | -8/Scraptown | Learned 4 Recycling zone layouts 7962 | -8/Scraptown | Learned 16 Upper Caves zone layouts 7962 | -8/Scraptown | Learned 24 Upper Caves zone layouts 7962 | -8/Scraptown | Learned Factory emergency access door positions 7962 | -8/Scraptown | Learned location of 1 exit from Proximity Caves 7962 | -8/Scraptown | Learned location of 3 exits from Proximity Caves 7967 | -8/Scraptown | Found Deep Structural Scanner 8006 | -8/Scraptown | Visited Scrap Suit Storage 8086 | -8/Scraptown | Found Botcube 8667 | -8/Scraptown | Found Scrap Suit 9633 | -8/Scraptown | Botcube activated 9655 | -8/Scraptown | Botcube completed mutation into treaded form, armed with 2 guns. 10107 | -8/Scraptown | Met Optimus 10107 | -8/Scraptown | Accepted into 0bPrime 10165 | -8/Scraptown | Entered Factory 10165 | -6/Factory | Accompanied by 10 allies 10165 | -6/Factory | Evolved 4 slots: Propulsion x1, Utility x3 10166 | -6/Factory | Identified exit to Factory 10167 | -6/Factory | Identified exit to Lower Caves 10167 | -6/Factory | Identified exit to Extension 10265 | -6/Factory | Lost 3 allies 10288 | -6/Factory | Repaired Imp. Propulsion Shielding 10322 | -6/Factory | Repaired Imp. Light Armor Plating 10591 | -6/Factory | Loaded intel: 8 recycling unit locations 10775 | -6/Factory | Learned location of Protoforge (-2) 10801 | -6/Factory | Fabricated Q-thruster (x2) 11072 | -6/Factory | Build established: Sprinter 11215 | -6/Factory | Search patrols dispatched 11225 | -6/Factory | Sucked down chute 11225 | -6/Factory | Entered Waste 11226 | -6/Waste | Joined by Warlord forces that had cleared the area 11315 | -6/Waste | Discovered new exit (range 12) 11375 | -6/Waste | A Compactor rumbled back to life 11376 | -6/Waste | Allies destroyed C-40 Crusher 11410 | -6/Waste | Entered Factory 11410 | -6/Factory | Accompanied by 19 allies 11420 | -6/Factory | Loaded intel: 8 recycling unit locations 11477 | -6/Factory | Garrison activated, responded to threat 11479 | -6/Factory | Discovered exit to Extension (range 15) 11495 | -6/Factory | Found Prototype Launcher 11527 | -6/Factory | Identified Scatter Rocket Array 11743 | -6/Factory | Build established: Scout 11743 | -6/Factory | Discovered exit to Lower Caves (range 14) 11811 | -6/Factory | Repaired Nuclear Pulse Thruster+ 11842 | -6/Factory | Discovered exit to Lower Caves (range 4) 11918 | -6/Factory | Garrison activated, responded to threat 12063 | -6/Factory | Entered Extension 12231 | -6/Extension | Rescued a captive Derelict 12254 | -6/Extension | Energy Cycler disabled 12257 | -6/Extension | Rescued A7 12533 | -6/Extension | Build established: Sprinter 12629 | -6/Extension | Spotted B-75 Beast 12663 | -6/Extension | Disrupted transfer network 12664 | -6/Extension | Allies destroyed B-75 Beast 12667 | -6/Extension | Discovered exit to Factory (range 15) 12668 | -6/Extension | Spotted B-75 Beast 12698 | -6/Extension | Extracted ID and sensor layout for unrecognized location from A7's data core 12726 | -6/Extension | Lost 3 allies 12763 | -6/Extension | First assault squad dispatched 12872 | -6/Extension | Destroyed 7 combat bots 12879 | -6/Extension | Lost 4 allies 12881 | -6/Extension | Entered Factory 12881 | -5/Factory | Evolved 2 slots: Power x1, Propulsion x1 12908 | -5/Factory | Lost 3 parts (1p1n1u) 13059 | -5/Factory | Loaded intel: 8 recycling unit locations 13444 | -5/Factory | Build established: Hacker-Sprinter 13591 | -5/Factory | Identified exit to Upper Caves 13598 | -5/Factory | Central database locked down 13716 | -5/Factory | Discovered new exit (range 15) 13720 | -5/Factory | Identified exit to Factory 13770 | -5/Factory | Entered Upper Caves 13771 | -5/Upper Caves | Identified exit to Upper Caves 13896 | -5/Upper Caves | Learned Factory interactive machine intel 13971 | -5/Upper Caves | Build established: Scavenger-Scout 13985 | -5/Upper Caves | Entered another Upper Caves area 13986 | -5/Upper Caves | Identified exit to Warlord 13993 | -5/Upper Caves | Attracted the attention of an 0b10 checkpoint 14031 | -5/Upper Caves | Learned Factory terminal intel 14091 | -5/Upper Caves | Learned location of 2 exits from Factory 14151 | -5/Upper Caves | Learned location of Warlord (-5) 14182 | -5/Upper Caves | Entered Warlord 14282 | -5/Warlord | Found Prototype Special Weapon 14340 | -5/Warlord | Visited the Vortex Lab 14341 | -5/Warlord | Found Prototype Piercing Weapon 14341 | -5/Warlord | Identified Vortex Lance 14346 | -5/Warlord | Found Vortex Lance 14362 | -5/Warlord | Warlord's base attacked by MAIN.C 14374 | -5/Warlord | Found Prototype Device 14374 | -5/Warlord | Identified Exp. Cloaking Device 14387 | -5/Warlord | Found Prototype Processor 14387 | -5/Warlord | Identified Spectral Analyzer 14390 | -5/Warlord | Found Prototype Device 14390 | -5/Warlord | Identified Exp. Focal Shield 14404 | -5/Warlord | Identified RU-N14's Throwing Claymores v3 14417 | -5/Warlord | Rebuked by Warlord 14422 | -5/Warlord | Found RU-N14's Throwing Claymores v3 14424 | -5/Warlord | Found RU-N14's Throwing Claymores v3 14446 | -5/Warlord | Build established: Ninja 14620 | -5/Warlord | P-70 Sage assimilated allied Sentinel 6a 14653 | -5/Warlord | Warlord forces counterattacked 14703 | -5/Warlord | Spotted B-75 Beast 14704 | -5/Warlord | Spotted B-86 Titan 14708 | -5/Warlord | Spotted Executioner 14728 | -5/Warlord | Spotted Striker 14768 | -5/Warlord | Destroyed Executioner 14844 | -5/Warlord | Lost 24 allies 14887 | -5/Warlord | Spotted Executioner 14965 | -5/Warlord | Spotted Striker 14972 | -5/Warlord | Lost 3 allies 15025 | -5/Warlord | Spotted B-86 Titan 15037 | -5/Warlord | Warlord base infiltrated, sounded retreat 15047 | -5/Warlord | Spotted Striker 15047 | -5/Warlord | Discovered new exit (range 9) 15053 | -5/Warlord | Identified exit to Proximity Caves 15061 | -5/Warlord | Lost 3 allies 15062 | -5/Warlord | Spotted Striker 15062 | -5/Warlord | Spotted Executioner 15062 | -5/Warlord | Spotted Executioner 15071 | -5/Warlord | Build established: Scavenger-Scout 15084 | -5/Warlord | Spotted B-75 Beast 15129 | -5/Warlord | Found Prototype Processor 15129 | -5/Warlord | Identified Exp. Melee Analysis Suite 15147 | -5/Warlord | Spotted Executioner 15189 | -5/Warlord | Spotted Executioner 15218 | -5/Warlord | Spotted Executioner 15233 | -5/Warlord | Found Prototype Device 15248 | -5/Warlord | Identified Exp. Thermal Shield 15262 | -5/Warlord | Spotted Executioner 15271 | -5/Warlord | Spotted Striker 15278 | -5/Warlord | Spotted Executioner 15280 | -5/Warlord | Entered Proximity Caves 15309 | -4/Proximity Caves | Lost 4 allies 15335 | -4/Proximity Caves | Activated DRS Beacon 15549 | -4/Proximity Caves | Received a Behemoth hack from an annoying Tinkerer 15602 | -4/Proximity Caves | Build established: Scavenger-Ninja 15661 | -4/Proximity Caves | Lost 3 allies 15747 | -4/Proximity Caves | Entered Factory 15747 | -4/Factory | Evolved 2 slots: Propulsion x1, Utility x1 15748 | -4/Factory | Identified exit to Research 15749 | -4/Factory | Identified exit to Armory 15749 | -4/Factory | Identified exit to Upper Caves 15750 | -4/Factory | Loaded intel: 54 interactive machine locations 15751 | -4/Factory | Loaded intel: 26 terminal locations 15918 | -4/Factory | Loaded intel: 8 recycling unit locations 15957 | -4/Factory | Central database locked down 16199 | -4/Factory | Repaired Centrium Medium Armor Plating? 16243 | -4/Factory | Discovered exit to Upper Caves (range 5) 16257 | -4/Factory | Found Prototype Launcher 16257 | -4/Factory | Identified Mni. Smartbomb Launcher 16315 | -4/Factory | Discovered exit to Research (range 5) 16324 | -4/Factory | Fabricated Lgt. Quantum Reactor? 16361 | -4/Factory | Fabricated Adv. Powered Armor (x1) 16497 | -4/Factory | Search patrols dispatched 16544 | -4/Factory | Manually triggered Chute Trap 16544 | -4/Factory | Sucked down chute 16544 | -4/Factory | Entered Waste 16547 | -4/Waste | Spotted C-40 Crusher 16575 | -4/Waste | Spotted C-40 Crusher 16579 | -4/Waste | Spotted C-40 Crusher 16583 | -4/Waste | Warlord forces began an assault 16613 | -4/Waste | Spotted C-40 Crusher 16660 | -4/Waste | Lost 3 allies 16666 | -4/Waste | Allies destroyed C-40 Crusher 16680 | -4/Waste | Allies destroyed C-40 Crusher 16686 | -4/Waste | Spotted C-40 Crusher 16691 | -4/Waste | Spotted C-40 Crusher 16691 | -4/Waste | Discovered new exit (range 23) 16704 | -4/Waste | Identified exit to Factory 16704 | -4/Waste | Entered Factory 16732 | -4/Factory | Lost 7 allies 16757 | -4/Factory | Loaded intel: 8 recycling unit locations 16842 | -4/Factory | Spotted B-86 Titan 16953 | -4/Factory | Spotted B-86 Titan 16965 | -4/Factory | Found Prototype Hackware 17150 | -4/Factory | Discovered exit to Research (range 9) 17154 | -4/Factory | Entered Research 17154 | -3/Research | Evolved 2 slots: Utility x2 17401 | -3/Research | Build established: Hacker-Ninja 17578 | -3/Research | Discovered new exit (range 8) 17579 | -3/Research | Identified exit to Quarantine 17580 | -3/Research | Entered Quarantine 17585 | -3/Quarantine | Spotted Alpha 7 17595 | -3/Quarantine | Found Alien Artifact 17595 | -3/Quarantine | Identified Phase Redirector 17680 | -3/Quarantine | Discovered new exit (range 12) 17756 | -3/Quarantine | Identified Exp. Hacking Suite 17765 | -3/Quarantine | Cryocooling Duct disabled 17780 | -3/Quarantine | Ambient heat levels rising (+20) 17780 | -3/Quarantine | Non-combat units ordered to evacuate 17872 | -3/Quarantine | Found Alien Artifact 17875 | -3/Quarantine | Found Alien Artifact 17907 | -3/Quarantine | Unchained authorized (DW-4LL) 18007 | -3/Quarantine | Identified Dimensional Node Initializer 18007 | -3/Quarantine | Identified Hpw. Transdimensional Reconstructor 18060 | -3/Quarantine | DW-4LL burst out of a wall 18202 | -3/Quarantine | Identified exit to Research 18202 | -3/Quarantine | Entered Research 18202 | -2/Research | Evolved 2 slots: Propulsion x1, Utility x1 18203 | -2/Research | Identified exit to Access 18232 | -2/Research | Loaded intel: 5 recycling unit locations 18494 | -2/Research | Discovered exit to Access (range 6) 18535 | -2/Research | Identified exit to Testing 18582 | -2/Research | Central database locked down 18642 | -2/Research | Entered Testing 18679 | -2/Testing | Found Prototype Energy Gun 18679 | -2/Testing | Identified Tachyon Dispersion Ray 18776 | -2/Testing | Found Prototype Device 18810 | -2/Testing | Spotted Striker 18810 | -2/Testing | Spotted Striker 18817 | -2/Testing | Identified Thermal Barrier 18837 | -2/Testing | Repaired Imp. Utility Shielding 18849 | -2/Testing | Found Prototype Device 18849 | -2/Testing | Identified Exp. Weapon Cycler 18888 | -2/Testing | Discovered exit to Access (range 20) 18966 | -2/Testing | Found Prototype Ballistic Cannon 18966 | -2/Testing | Identified Omega Cannon 18974 | -2/Testing | Unchained authorized (DW-4LL) 19052 | -2/Testing | Spotted Fortress 19070 | -2/Testing | Discovered new exit (range 6) 19070 | -2/Testing | Discovered new exit (range 7) 19071 | -2/Testing | Identified exit to Protoforge 19074 | -2/Testing | Entered Protoforge 19240 | -2/Protoforge | Spotted Hotshot 19324 | -2/Protoforge | Search patrols dispatched 19436 | -2/Protoforge | Spotted Hotshot 19436 | -2/Protoforge | Spotted Hotshot 19452 | -2/Protoforge | Spotted AP7-3 19452 | -2/Protoforge | Spotted AP7-3 19572 | -2/Protoforge | Spotted Overlord 19580 | -2/Protoforge | Superfortress began startup sequence 19663 | -2/Protoforge | Spotted Hotshot 19663 | -2/Protoforge | Spotted Hotshot 19680 | -2/Protoforge | Spotted Decapitator 19680 | -2/Protoforge | Spotted Decapitator 19681 | -2/Protoforge | Spotted EXE-6 19681 | -2/Protoforge | Spotted EXE-6 19694 | -2/Protoforge | UFD initiated attack on Protoforge (Readiness: Maximal) 19694 | -2/Protoforge | Loaded intel: 3 recycling unit locations 19697 | -2/Protoforge | Found Exp. Focal Shield 19707 | -2/Protoforge | Lost 3 parts (3u) 19707 | -2/Protoforge | Spotted EXE-6 19708 | -2/Protoforge | Spotted EXE-6 19716 | -2/Protoforge | Found Dimensional Node Initializer 19724 | -2/Protoforge | Initialized slip node 19730 | -2/Protoforge | Optimus greeted in Protoforge 19733 | -2/Protoforge | Found Prototype Processor 19733 | -2/Protoforge | Identified Exp. Core Analyzer 19757 | -2/Protoforge | Lost 3 allies 19820 | -2/Protoforge | Warped through subspace to slip node 19840 | -2/Protoforge | Lost 15 parts (3p6n5u1w) 19957 | -2/Protoforge | UFD reported confirmed Drillbomb installation 19968 | -2/Protoforge | Found Scrap Suit 20017 | -2/Protoforge | Found UFD Drillbomb 20066 | -2/Protoforge | Found Prototype Device 20066 | -2/Protoforge | Identified Cep. Recoil Nullifier 20069 | -2/Protoforge | Spotted Executioner 20070 | -2/Protoforge | Spotted Striker 20137 | -2/Protoforge | Spotted 02F09-K 20173 | -2/Protoforge | Lost 7 allies 20223 | -2/Protoforge | Spotted Striker 20258 | -2/Protoforge | Found UFD Drillbomb 20280 | -2/Protoforge | Spotted Striker 20283 | -2/Protoforge | Spotted Striker 20306 | -2/Protoforge | Lost 10 allies 20379 | -2/Protoforge | Installed UFD Drillbomb at designated target 20379 | -2/Protoforge | UFD reported confirmed Drillbomb installation 20399 | -2/Protoforge | Found UFD Drillbomb 20403 | -2/Protoforge | UFD reported confirmed Drillbomb installation 20422 | -2/Protoforge | Spotted Striker 20507 | -2/Protoforge | Lost 3 allies 20512 | -2/Protoforge | Installed UFD Drillbomb at designated target 20512 | -2/Protoforge | UFD reported confirmed Drillbomb installation 20527 | -2/Protoforge | Found UFD Drillbomb 20538 | -2/Protoforge | Spotted Striker 20543 | -2/Protoforge | Build established: Scavenger-Sprinter 20569 | -2/Protoforge | Spotted Striker 20573 | -2/Protoforge | Spotted Striker 20601 | -2/Protoforge | P-80 Master assimilated allied 02F89-D 20672 | -2/Protoforge | Lost 7 allies 20682 | -2/Protoforge | Spotted Striker 20694 | -2/Protoforge | Spotted Striker 20770 | -2/Protoforge | Spotted Executioner 20771 | -2/Protoforge | Spotted Striker 20806 | -2/Protoforge | Destroyed Hotshot 20818 | -2/Protoforge | Lost 3 allies 20863 | -2/Protoforge | Build established: Scavenger-Mutant 20865 | -2/Protoforge | Spotted Striker 20897 | -2/Protoforge | Spotted Striker 20906 | -2/Protoforge | Spotted Striker 20909 | -2/Protoforge | Destroyed Striker 20967 | -2/Protoforge | Found Prototype Processor 20967 | -2/Protoforge | Identified Exp. Targeting Computer 20979 | -2/Protoforge | Spotted Executioner 20982 | -2/Protoforge | Destroyed Executioner 20988 | -2/Protoforge | Spotted Executioner 20999 | -2/Protoforge | Lost 7 allies 21017 | -2/Protoforge | Destroyed Executioner 21031 | -2/Protoforge | Found Exp. Core Analyzer 21065 | -2/Protoforge | Found Exp. Targeting Computer 21077 | -2/Protoforge | Spotted Striker 21078 | -2/Protoforge | Spotted Striker 21082 | -2/Protoforge | Spotted Striker 21082 | -2/Protoforge | Spotted Striker 21100 | -2/Protoforge | Destroyed Striker 21175 | -2/Protoforge | Spotted Striker 21178 | -2/Protoforge | Spotted Striker 21221 | -2/Protoforge | Spotted Striker 21229 | -2/Protoforge | Destroyed Striker 21233 | -2/Protoforge | Spotted Executioner 21264 | -2/Protoforge | Found Exp. Targeting Computer 21273 | -2/Protoforge | Found Prototype Device 21273 | -2/Protoforge | Identified Adv. Kinecellerator 21287 | -2/Protoforge | Lost 19 allies 21297 | -2/Protoforge | Forge Plexus network access discovered 21306 | -2/Protoforge | Spotted Striker 21341 | -2/Protoforge | Spotted Executioner 21349 | -2/Protoforge | Spotted Executioner 21365 | -2/Protoforge | Spotted Executioner 21376 | -2/Protoforge | Lost 5 allies 21380 | -2/Protoforge | Spotted Executioner 21390 | -2/Protoforge | Core integrity fell below 50% 21395 | -2/Protoforge | Spotted Striker 21395 | -2/Protoforge | Spotted Striker 21403 | -2/Protoforge | Destroyed Striker 21426 | -2/Protoforge | Destroyed Striker 21464 | -2/Protoforge | Lost 9 allies 21484 | -2/Protoforge | Spotted Executioner 21486 | -2/Protoforge | Spotted Executioner 21498 | -2/Protoforge | Found Exp. Core Analyzer 21515 | -2/Protoforge | Spotted Executioner 21536 | -2/Protoforge | Lost 5 parts (1n3u1w) 21555 | -2/Protoforge | Spotted Executioner 21583 | -2/Protoforge | Spotted Striker 21584 | -2/Protoforge | Spotted Striker 21600 | -2/Protoforge | Lost 10 allies 21675 | -2/Protoforge | Found Exp. Targeting Computer 21677 | -2/Protoforge | Found Exp. Core Analyzer 21684 | -2/Protoforge | Found Adv. Kinecellerator 21690 | -2/Protoforge | Lost 4 allies 21723 | -2/Protoforge | Spotted Executioner 21750 | -2/Protoforge | Spotted Executioner 21750 | -2/Protoforge | Destroyed Executioner 21768 | -2/Protoforge | Found Exp. Targeting Computer 21779 | -2/Protoforge | Lost 7 allies 21780 | -2/Protoforge | Spotted Executioner 21781 | -2/Protoforge | Spotted Striker 21787 | -2/Protoforge | Spotted Executioner 21789 | -2/Protoforge | Spotted Striker 21860 | -2/Protoforge | Lost 9 allies 21878 | -2/Protoforge | Spotted Executioner 21879 | -2/Protoforge | Found Exp. Targeting Computer 21880 | -2/Protoforge | Spotted Striker 21910 | -2/Protoforge | Destroyed Striker 21914 | -2/Protoforge | Destroyed Executioner 21938 | -2/Protoforge | Spotted Striker 21940 | -2/Protoforge | Lost 5 allies 21944 | -2/Protoforge | Spotted Striker 21969 | -2/Protoforge | Spotted Executioner 21970 | -2/Protoforge | Spotted Executioner 21982 | -2/Protoforge | Spotted Striker 21991 | -2/Protoforge | Spotted Striker 22025 | -2/Protoforge | Lost 3 allies 22093 | -2/Protoforge | Spotted B-90 Cyclops 22171 | -2/Protoforge | Spotted Striker 22173 | -2/Protoforge | Destroyed Striker 22176 | -2/Protoforge | Spotted Striker 22177 | -2/Protoforge | Destroyed Striker 22181 | -2/Protoforge | Spotted Striker 22184 | -2/Protoforge | Spotted Executioner 22187 | -2/Protoforge | P-80 Master assimilated allied 02FFX-D 22200 | -2/Protoforge | Spotted Executioner 22225 | -2/Protoforge | Spotted Executioner 22228 | -2/Protoforge | Spotted Executioner 22235 | -2/Protoforge | Spotted Executioner 22256 | -2/Protoforge | Found Exp. Core Analyzer 22258 | -2/Protoforge | Spotted Striker 22259 | -2/Protoforge | Spotted Striker 22274 | -2/Protoforge | Lost 15 allies 22291 | -2/Protoforge | Found Adv. Kinecellerator 22296 | -2/Protoforge | Spotted Striker 22316 | -2/Protoforge | Destroyed Striker 22337 | -2/Protoforge | Lost 6 allies 22341 | -2/Protoforge | Spotted Striker 22347 | -2/Protoforge | P-80 Master assimilated allied 02FGI-D 22374 | -2/Protoforge | Spotted Striker 22374 | -2/Protoforge | Spotted Striker 22380 | -2/Protoforge | Destroyed Striker 22410 | -2/Protoforge | Spotted Executioner 22411 | -2/Protoforge | Spotted Striker 22449 | -2/Protoforge | Lost 14 allies 22473 | -2/Protoforge | Spotted Executioner 22474 | -2/Protoforge | Spotted Striker 22502 | -2/Protoforge | Found Exp. Core Analyzer 22669 | -2/Protoforge | Spotted Executioner 22742 | -2/Protoforge | Spotted Executioner 22748 | -2/Protoforge | Core integrity fell below 20% 22775 | -2/Protoforge | Spotted Striker 22776 | -2/Protoforge | Spotted Striker 22788 | -2/Protoforge | Destroyed Striker 22804 | -2/Protoforge | Spotted Striker 22806 | -2/Protoforge | Spotted Striker 22816 | -2/Protoforge | Destroyed Striker 22827 | -2/Protoforge | Destroyed Striker 22827 | -2/Protoforge | Destroyed Striker 22842 | -2/Protoforge | Lost 11 allies 22865 | -2/Protoforge | Spotted Striker 22870 | -2/Protoforge | Spotted Executioner 22873 | -2/Protoforge | Destroyed Executioner 22876 | -2/Protoforge | Spotted Striker 22878 | -2/Protoforge | Spotted Executioner 22882 | -2/Protoforge | Spotted Executioner 22895 | -2/Protoforge | Destroyed Striker 22924 | -2/Protoforge | Spotted Striker 22932 | -2/Protoforge | Destroyed Striker 22935 | -2/Protoforge | Lost 3 allies 23017 | -2/Protoforge | Spotted Executioner 23018 | -2/Protoforge | UFD reported confirmed Drillbomb installation 23090 | -2/Protoforge | Spotted Executioner 23092 | -2/Protoforge | Spotted Executioner 23095 | -2/Protoforge | Spotted Striker 23097 | -2/Protoforge | Spotted Executioner 23114 | -2/Protoforge | Found Exp. Core Analyzer 23160 | -2/Protoforge | Destroyed by Executioner with Helical Railgun Last Messages --------------- 23156_ Acquired 10 matter. 23156_ Slug penetrates 31-L7W(E). 23156_ 31-L7W(E) destroyed. 23156_ Slug penetrates KE-KTR(E). 23156_ Slug penetrates G-73 Enforcer. 23156_ Lugger 060 reactivates. 23156_ Lugger 060 self-destructs. 23156_ Lugger 060 destroyed. 23156_ N-04 Retriever collects Beam Rifle. 23156_ N-04 Retriever collects Scrap Suit. 23157_ Slug penetrates G-73 Enforcer. 23157_ Slug penetrates KE-KTR(E). 23158_ Slug penetrates Executioner. 23158_ CPS modules swiftly deploy to protect G-73 Enforcer components. 23158_ G-73 Enforcer destroyed. 23158_ Slug penetrates KE-KTR(E). 23159_ KE-KTR(E) destroyed. 23159_ Slug penetrates Lugger 952. 23160_ Penetrated by Slug. Map ----- +----------------------------------------------------+ | %%%%%%%%%%%%%%% % % %% % "" """" | | ""%%%%"% %%%& % % %% " %% %* """"" | | !!%!=!=% !% %%%%%% %%" %%% % ! " """""" | | !& %%! % !% %%%=%% % """"""" | | !! !"% %% %%%%=#%%=% %%% % " "" """""""" | | ! !%! "% % %![#!%%[% % " """"""""" | | "% %"""""""[##%%!!%%% """"""""" | | " "" % ##%["" % % "" """"""""" | | % %*! ![!!% "" % ##%=%% " """""""""" | | =!![!=]!%!%* " % ## % % !% %s " """""""""" | | * &%% %% %%% " "# [ s """""""""" | | %&% %%%%% %%% / "# s """""""""" | | %%%%%%%%% % % " "# % """""""""" | | %!%=!! !;n%% " ## % % """""""""" | | !%*!!|! % "" "# %" % % """""""""" | | !/=%!% ;; "" ## " "%" "" "% %"""""""""" | | !"% ;; % ;" ## "" % %" """""""""" | | * % ;%% ;; "# % """"""""" | | %" % %;; ;;;;"###"## % """"""""" | | " %; ; %# # " """ " %" """"""""" | | "" !!* ;;;%%%; # """ " " % """""""" | | [%= = %;!! # " " %%""""""" | | %!! =%! %%%=*%= ## "" % % """""" | | =!=% %% %!![!=! # " "" "" % % """"" | | ![ s*%%%%=%!%%!*=%==% %% "" % "" " % %"""" | | ""%=E=!!%; %%!=%[%!=%% % @ %" """ s """ | | %%E![ !*|!%%[%%%A%%% % % " % % % | | % "%[; ;==%%%*![%*%%%% % % " % n """ %% | | ! !!; ! ; !A*!%%!%% % #% "%" """ SS s """" | | " ; [; %!%%%=%%=% %# % %" """ SS s % | | %% ; %=%!*!!*[ # " % | | %% ; % ;!!*=!= # " " " " """ " | | % [[[ # " " "" | | % %% ;% % ## "" " " """ " | | %%% % ;=! ## "" "" " " " | | % % % !##;##"### " "" | | %% % % ##### "" " % """"" | | # %=# ###???# "" " " " | | #" # #?????# "% % "" | | % ## #?????# " "% | | # #?????# "" " """"" | | # ## # #?????# "" " " | | % ########?????######## ################# | | ##???????????????????####???????????????? | | ##??############?????????????????????????? | | " % #??############?????????????????????????? | | # ##??## """"" ##?????????????????????????? | | " ##### ""T"" ##?????????????????????????? | | ##### ##?????????????????????????? | | # """" ##?????????????????????????? | +----------------------------------------------------+ Best States ------------- Heat Dissipation 75 Energy Generation 50 Energy Capacity 630 Matter Stores 300 Matter Capacity 300 Sight Range 24 Robot Scan Range 16 Terrain Scan Density 10 ECM Strength 1 Jamming Range 16 Cloak Strength 3 Power Amplification 20 Additional Mass Support 9 Armor Coverage 600 Resistance: KI 30 Resistance: TH 50 Resistance: EM 20 Core Shielding 30 Propulsion Shielding 90 Utility Shielding 66 Weapon Shielding 90 Weapon Cycling 30 Phase Shifting 15 Evasion (%) 77 Targeting Accuracy 48 Melee Accuracy 26 Target Analysis 12 Core Analysis 12 Armor Integrity Analysis 40 Recoil Reduction 4 Particle Charging 20 Kinecelleration 50 Salvage Targeting 4 Offensive Hacking 28 Defensive Hacking 14 Authchip Count 1 Item Schematics ----------------- Diametric Drive | -2/Testing | Scanalyzed Robot Schematics ------------------ None Fabricated ------------ Q-thruster | x2 | -6/Factory | Preloaded Lgt. Quantum Reactor | x2 | -4/Factory | Preloaded Adv. Powered Armor | x1 | -4/Factory | Preloaded Repaired ---------- Imp. Propulsion Shielding | 29% | -6/Factory Imp. Light Armor Plating | 70% | -6/Factory Nuclear Pulse Thruster | 33% | -6/Factory Centrium Medium Armor Plating | 28% | -4/Factory Imp. Utility Shielding | 20% | -2/Testing Studied --------- Lgt. Fission Core | -6/Factory | Hacked Nuclear Pulse Thruster | -6/Factory | Hacked Greatsword | -6/Factory | Hacked Missile Launcher | -6/Factory | Hacked Chainsword | -6/Factory | Hacked Mic. Nuclear Core | -5/Factory | Hacked Imp. Surge Thruster | -5/Factory | Hacked Lrn. Missile Launcher | -5/Factory | Hacked Phase Cannon | -5/Factory | Hacked Lgt. Ion Engine | -5/Factory | Hacked Nuclear Pulse Array | -4/Factory | Hacked Field Propulsion Array | -3/Research | Hacked Mic. Antimatter Reactor | -3/Research | Hacked Power Sword | -3/Research | Hacked Impulse Thruster | -3/Quarantine | Hacked Field Propulsion Drive | -3/Quarantine | Hacked Hvy. Phase Cannon | -3/Quarantine | Hacked Enh. Force Lance | -2/Research | Hacked Lgt. Particle Reactor | -2/Testing | Hacked Lgt. Quantum Reactor | -2/Testing | Hacked Impulse Thruster Array | -2/Testing | Hacked Hvy. Pick | -2/Protoforge | Hacked Enh. Nova Cannon | -2/Protoforge | Hacked Alien Tech Used ----------------- Phase Redirector Dimensional Node Initializer High-powered Transdimensional Reconstructor Achievements -------------- All Kinds Of Bad News Fine I'll Do It Myself Inventory(Loot) Perfect Aim Please No, Not That Super-what Now? This Is My Hole We Are One Challenges ------------ None Game ------ Seed AblativeBarrageFragment Manual? 0 Play Time 07:59:47 Cumulative 296.1 hours Start 2026.01.03 @ 19:11:47 End 2026.01.04 @ 03:27:26 Sessions 7 Manual Loads 0 Difficulty Rogue Special Mode None Game No. 171 Rogue 167 Adventurer 4 Explorer 0 Win Type - Total 10 Types 8/0/2/0/0/0/0/0/0/0 Lore% 87 Gallery% 76 Achievement% 55 Wizard Run 0 Options --------- Layout 2 ASCII 0 Keyboard 1 Movement Vi Keybinds 1 Fullscreen 2 Font 24/Smallcaps Map View 50x44 Zoom Use 0% Tactical HUD 1 Map Filters NONE Filters NONE Steam 1 RUN: a3d503d9-aedf-4875-abf8-edd8b7f2fa60